{"text_format":"1","workbook":"xlsx","n_sheets":7,"sheets":["Additionals Import","Additionals Export","Fuel","ETS","DATA","GEO","PORTS"],"not_rendered":{"charts":0,"images":3,"macros":1,"external_links":0,"defined_names":5,"comments":0,"pivot_tables":0},"unopened":[],"bounds":{"document_bytes":16777216,"sheet_cells":100000,"rows_first":2000,"rows_last":500,"rows_between":2000,"halvings":0,"cell_chars":16384,"cell_head_chars":4096},"cells_cut":0,"cells_raw":0,"read":"whole","date_system":"1900"}

{"sheet":"Additionals Import","index":0,"n_rows":40,"n_cols":13,"rows_kept":40,"cut":false,"hidden":false,"merged":[[29,8,29,9],[29,10,29,11],[29,12,29,13],[27,8,27,9],[27,10,27,11],[27,12,27,13],[28,8,28,9],[28,10,28,11],[28,12,28,13],[25,8,25,9],[25,10,25,11],[25,12,25,13],[26,8,26,9],[26,10,26,11],[26,12,26,13],[22,8,22,9],[22,10,22,11],[22,12,22,13],[24,8,24,9],[24,10,24,11],[24,12,24,13],[21,12,21,13],[19,8,19,9],[19,10,19,11],[19,12,19,13],[20,8,20,9],[20,10,20,11],[20,12,20,13],[21,8,21,9],[21,10,21,11],[26,1,26,3],[26,4,26,5],[26,6,26,7],[29,1,29,3],[29,4,29,5],[29,6,29,7],[27,1,27,3],[27,4,27,5],[27,6,27,7],[28,1,28,3],[28,4,28,5],[28,6,28,7],[24,4,24,5],[24,6,24,7],[22,1,22,3],[25,1,25,3],[25,4,25,5],[25,6,25,7],[20,1,20,3],[20,4,20,5],[20,6,20,7],[22,4,22,5],[22,6,22,7],[21,1,21,3],[21,4,21,5],[21,6,21,7],[16,6,16,7],[14,4,14,5],[14,6,14,7],[19,4,19,5],[19,6,19,7],[17,7,17,8],[15,8,15,9],[14,8,14,9],[14,10,14,11],[14,12,14,13],[15,1,15,3],[15,4,15,5],[15,6,15,7],[15,10,15,11],[15,12,15,13]]}
[]
[]
[]
[]
[null,"Aktuella tillägg Import"]
[null,"Current additionals Import"]
[]
[null,"Varje månad publicerar vi uppgifter om bränsle- och valutatillägg (DMT & BAF) samt övriga tillägg som DB Schenker använder."]
[null,"Dessa tillägg bestäms av våra leverantörer och är därför svåra för oss på DB Schenker att påverka. Observera att det är skeppningsdatumet som avgör vilka tillägg som gäller. "]
[]
[null,"Every month, we publish information on fuel and currency additionals (Fuel & BAF) as well as other additionals that DB Schenker applies."]
[null,"These additionals are determined by our suppliers and are therefore difficult for us at DB Schenker to influence. Please note that it is the shipping date that determines which additionals that applies."]
[]
[]
[null,"Peak Season Surcharges",null,null,"Area/Country",null,"Validity from:",null,"Validity to:",null,"FCL",null,"LCL"]
[null,"Far East",null,null,"Asia excl ISC/AU/NZ",null,"2023-08-15",null,"until further notice",null,0,null,0]
[null,"Turkey",null,null,"TR",null,"2022-03-01",null,"until further notice",null,0,null,0]
[null,"ISC",null,null,"IN/PK/LK/BD",null,"2022-03-01",null,"until further notice",null,0,null,0]
[]
[null,"Congestion Fee",null,null,"Area/Country",null,"Validity from:",null,"Validity to:",null,"FCL",null,"LCL"]
[null,"Far East",null,null,"Asia excl ISC/AU/NZ",null,"2022-03-01",null,"until further notice",null,0,null,0]
[null,"Turkey",null,null,"TR",null,"2023-04-01",null,"until further notice",null,0,null,0]
[]
[]
[null,"Miscellaneous",null,null,"Area/Country",null,"Validity from:",null,"Validity to:",null,"FCL",null,"LCL"]
[null,"Late Cancellation Fee (7days Prior to CY Closing)",null,null,"ALL",null,"2020-08-01",null,"until further notice",null,"EUR 150 per Booking",null,"EUR 150 per Booking"]
[null,"War Risk surcharge",null,null,"Arabian Gulf",null,"2020-08-01",null,"until further notice",null,"USD 53,5 per TEU",null,"USD 3,50 per W/M"]
[null,"Heavy Weight Surcharge as of Cargo weight 18t",null,null,"ALL",null,"2020-08-01",null,"until further notice",null,"USD 250 per 20DV",null,0]
[null,"Panama Canal Emergency Surcharge",null,null,"Latam West Coast",null,"2024-01-01",null,"until further notice",null,"USD 150 per TEU",null,"USD 8 per W/M"]
[]
[]
[]
[null,"Ovanstående tillägg räknas från skeppningsdatum och gäller tills vidare. "]
[null,"Övriga tillägg specificeras i kundofferterna alternativt i kundutskick.  "]
[null,"För övriga tillägg eller offert, kontakta oss via e-post: se.sm.got.oceantrade@dbschenker.com"]
[]
[]
[null,"The above additionals are calculated from the shipping date and applies until further notice."]
[null,"Other additionals are specified in customer quotes or in emails sent directly to customers."]
[null,"For other additionals or quotes, contact us via e-mail: se.sm.got.oceanpricing@dbschenker.com"]

{"sheet":"Additionals Export","index":1,"n_rows":82,"n_cols":13,"rows_kept":82,"cut":false,"hidden":false,"merged":[[71,1,71,3],[71,4,71,5],[71,6,71,7],[71,8,71,9],[71,10,71,11],[71,12,71,13],[70,1,70,3],[70,4,70,5],[70,6,70,7],[70,8,70,9],[70,10,70,11],[70,12,70,13],[69,1,69,3],[69,4,69,5],[69,6,69,7],[69,8,69,9],[69,10,69,11],[69,12,69,13],[68,1,68,3],[68,4,68,5],[68,6,68,7],[68,8,68,9],[68,10,68,11],[68,12,68,13],[67,1,67,3],[67,4,67,5],[67,6,67,7],[67,8,67,9],[67,10,67,11],[67,12,67,13],[66,1,66,3],[66,4,66,5],[66,6,66,7],[66,8,66,9],[66,10,66,11],[66,12,66,13],[65,1,65,3],[65,4,65,5],[65,6,65,7],[65,8,65,9],[65,10,65,11],[65,12,65,13],[64,1,64,3],[64,4,64,5],[64,6,64,7],[64,8,64,9],[64,10,64,11],[64,12,64,13],[63,1,63,3],[63,4,63,5],[63,6,63,7],[63,8,63,9],[63,10,63,11],[63,12,63,13],[61,4,61,5],[61,6,61,7],[61,8,61,9],[61,10,61,11],[61,12,61,13],[61,1,61,3],[60,4,60,5],[60,6,60,7],[60,8,60,9],[60,10,60,11],[60,12,60,13],[59,1,59,3],[59,4,59,5],[59,6,59,7],[59,8,59,9],[59,10,59,11],[59,12,59,13],[60,1,60,3],[57,12,57,13],[58,1,58,3],[58,4,58,5],[58,6,58,7],[58,8,58,9],[58,10,58,11],[58,12,58,13],[56,4,56,5],[56,6,56,7],[56,8,56,9],[56,10,56,11],[56,12,56,13],[57,1,57,3],[57,4,57,5],[57,6,57,7],[57,8,57,9],[57,10,57,11],[53,1,53,3],[53,4,53,5],[53,6,53,7],[53,8,53,9],[53,10,53,11],[53,12,53,13],[52,1,52,3],[52,4,52,5],[52,6,52,7],[52,8,52,9],[52,10,52,11],[52,12,52,13],[51,1,51,3],[51,4,51,5],[51,6,51,7],[51,8,51,9],[51,10,51,11],[51,12,51,13],[49,8,49,9],[49,10,49,11],[49,12,49,13],[50,1,50,3],[50,4,50,5],[50,6,50,7],[50,8,50,9],[50,10,50,11],[50,12,50,13],[47,8,47,9],[47,10,47,11],[47,12,47,13],[48,8,48,9],[48,10,48,11],[48,12,48,13],[45,8,45,9],[45,10,45,11],[45,12,45,13],[46,8,46,9],[46,10,46,11],[46,12,46,13],[43,8,43,9],[43,10,43,11],[43,12,43,13],[44,1,44,3],[44,8,44,9],[44,10,44,11],[44,12,44,13],[41,8,41,9],[41,10,41,11],[41,12,41,13],[42,8,42,9],[42,10,42,11],[42,12,42,13],[42,1,42,3],[42,4,42,5],[42,6,42,7],[44,4,44,5],[44,6,44,7],[37,8,37,9],[37,10,37,11],[37,12,37,13],[40,8,40,9],[40,10,40,11],[40,12,40,13],[35,8,35,9],[35,10,35,11],[35,12,35,13],[36,8,36,9],[36,10,36,11],[36,12,36,13],[25,1,25,3],[25,4,25,5],[25,6,25,7],[25,8,25,9],[25,10,25,11],[25,12,25,13],[30,8,30,9],[30,10,30,11],[30,12,30,13],[28,8,28,9],[28,10,28,11],[29,1,29,3],[26,4,26,5],[26,6,26,7],[27,1,27,3],[27,4,27,5],[27,6,27,7],[29,4,29,5],[29,6,29,7],[28,1,28,3],[28,4,28,5],[28,6,28,7],[26,1,26,3],[32,8,32,9],[32,10,32,11],[32,12,32,13],[34,8,34,9],[34,10,34,11],[34,12,34,13],[19,8,19,9],[19,10,19,11],[19,12,19,13],[31,8,31,9],[31,10,31,11],[31,12,31,13],[28,12,28,13],[29,8,29,9],[29,10,29,11],[29,12,29,13],[26,8,26,9],[26,10,26,11],[26,12,26,13],[27,8,27,9],[27,10,27,11],[27,12,27,13],[23,8,23,9],[23,10,23,11],[23,12,23,13],[24,8,24,9],[24,10,24,11],[24,12,24,13],[20,8,20,9],[21,10,21,11],[20,12,20,13],[22,8,22,9],[22,10,22,11],[22,12,22,13],[21,8,21,9],[21,12,21,13],[18,8,18,9],[18,10,18,11],[18,12,18,13],[14,8,14,9],[14,10,14,11],[14,12,14,13],[15,8,15,9],[15,10,15,11],[15,12,15,13],[16,8,16,9],[16,10,16,11],[17,8,17,9],[17,10,17,11],[48,1,48,3],[48,4,48,5],[48,6,48,7],[49,1,49,3],[49,4,49,5],[49,6,49,7],[46,1,46,3],[46,4,46,5],[46,6,46,7],[47,1,47,3],[47,4,47,5],[47,6,47,7],[45,1,45,3],[45,4,45,5],[45,6,45,7],[43,1,43,3],[43,4,43,5],[40,4,40,5],[40,6,40,7],[41,1,41,3],[41,4,41,5],[41,6,41,7],[43,6,43,7],[36,1,36,3],[36,4,36,5],[36,6,36,7],[37,1,37,3],[37,4,37,5],[37,6,37,7],[34,4,34,5],[34,6,34,7],[35,1,35,3],[35,4,35,5],[35,6,35,7],[32,1,32,3],[32,4,32,5],[32,6,32,7],[30,1,30,3],[30,4,30,5],[30,6,30,7],[31,1,31,3],[31,4,31,5],[31,6,31,7],[23,1,23,3],[23,4,23,5],[23,6,23,7],[24,1,24,3],[24,4,24,5],[24,6,24,7],[20,1,20,3],[20,4,20,5],[20,6,20,7],[22,1,22,3],[22,4,22,5],[22,6,22,7],[21,1,21,3],[21,4,21,5],[21,6,21,7],[18,1,18,3],[18,4,18,5],[18,6,18,7],[19,1,19,3],[19,4,19,5],[19,6,19,7],[14,4,14,5],[14,6,14,7],[15,1,15,3],[15,4,15,5],[15,6,15,7],[16,1,16,3],[16,4,16,5],[16,6,16,7],[17,1,17,3],[17,4,17,5],[17,6,17,7]]}
[]
[]
[]
[]
[null,"Aktuella tillägg Export"]
[null,"Current additionals Export"]
[]
[null,"Varje månad publicerar vi uppgifter om bränsle- och valutatillägg (DMT & BAF) samt övriga tillägg som DB Schenker använder."]
[null,"Dessa tillägg bestäms av våra leverantörer och är därför svåra för oss på DB Schenker att påverka. Observera att det är skeppningsdatumet som avgör vilka tillägg som gäller. "]
[]
[null,"Every month, we publish information on fuel and currency additionals (Fuel & BAF) as well as other additionals that DB Schenker applies."]
[null,"These additionals are determined by our suppliers and are therefore difficult for us at DB Schenker to influence. Please note that it is the shipping date that determines which additionals that applies."]
[]
[]
[null,"Peak Season Surcharges",null,null,"Area/Country",null,"Validity from:",null,"Validity to:",null,"FCL",null,"LCL"]
[null,"North America - PSS",null,null,"US/CA/MX",null,"2024-09-01",null,"2024-10-31",null,"20ft: 600 USD / 40ft: 800 USD",null,"USD 38 per W/M"]
[null,"North America - Low Water Surcharge (LWS)",null,null,"CA",null,"2024-10-15",null,"until further notice",null,"20ft: 150 USD / 40ft: 300 USD"]
[null,"North America - Congestion Surcharge (CGS)",null,null,"CA",null,"2024-11-25",null,"until further notice",null,"20ft: 400 USD / 40ft: 600 USD / RF: 1000 USD"]
[]
[null,"Oceania",null,null,"AU/NZ",null,"2024-07-01",null,"until further notice",null,"USD 500 per TEU",null,"USD 20 per W/M"]
[]
[null,"Middle East Gulf",null,null,"BH/KW/OM/QA/SA/AE",null,"2024-08-01",null,"until further notice",null,"USD 300 per 20ft / USD 400 per 40ft"]
[]
[null,"South America",null,null,"West, North, Caribbean ",null,"2021-12-01",null,"2022-03-31",null,"EUR 3500 per container",null,"EUR 75 per W/M"]
[null,"South America",null,null,"West, North, Caribbean ",null,"2022-04-01",null,"until further notice",null,0,null,0]
[]
[null,"South America",null,null,"East Coast",null,"2021-09-01",null,"2022-03-31",null,"EUR 200 per TEU",null,"EUR 10 per W/M"]
[null,"South America",null,null,"East Coast",null,"2022-04-01",null,"until further notice",null,0,null,0]
[]
[null,"Africa",null,null,"South, East Africa",null,"2021-11-01",null,"2022-03-31",null,"USD 300 per TEU",null,"USD 15 per W/M"]
[null,"Africa",null,null,"South, East Africa",null,"2022-04-01",null,"until further notice",null,0,null,0]
[]
[]
[]
[null,"Corona Impact Surcharges",null,null,"Area/Country",null,"Validity from:",null,"Validity to:",null,"FCL",null,"LCL"]
[null,"Far East/ISC/Middle East",null,null,"Asia, IN/PK/LK/BD, Middle East",null,"2020-08-01",null,"2022-03-31",null,"USD 335/425 per 20ft/40ft",null,"USD 11 per W/M"]
[null,"Far East/ISC/Middle East",null,null,"Asia, IN/PK/LK/BD, Middle East",null,"2022-04-01",null,"until further notice",null,0,null,0]
[]
[]
[]
[null,"Equipment Imbalance surcharge",null,null,"Area/Country",null,"Validity from:",null,"Validity to:",null,"FCL",null,"LCL"]
[null,"All trades",null,null,"except below Trades",null,"2021-07-01",null,"2022-03-31",null,"EUR 250 per container",null,"USDS 7,50 per W/M"]
[null,"All trades",null,null,"except below Trades",null,"2022-04-01",null,"until further notice",null,0,null,0]
[]
[null,"North America",null,null,"US/CA/MX",null,"2021-07-01",null,"2022-03-31",null,"USD 400 per container",null,"USD 10 per W/M"]
[null,"North America",null,null,"US/CA/MX",null,"2022-04-01",null,"until further notice",null,0,null,0]
[]
[null,"South America",null,null,"West, North, Caribbean ",null,"2021-08-01",null,"2022-03-31",null,"EUR 1000/1500 per 20ft/40ft",null,"EUR 37,50 per W/M"]
[null,"South America",null,null,"West, North, Caribbean ",null,"2022-04-01",null,"until further notice",null,0,null,0]
[]
[null,"South America",null,null,"East Coast",null,"2021-07-01",null,"2022-03-31",null,"EUR 250 per container",null,"EUR 6 per W/M"]
[null,"South America",null,null,"East Coast",null,"2022-04-01",null,"until further notice",null,0,null,0]
[]
[]
[]
[]
[null,"Miscellaneous",null,null,"Area/Country",null,"Validity from:",null,"Validity to:",null,"FCL",null,"LCL"]
[null,"Late Cancellation Fee (7days Prior to CY Closing)",null,null,"ALL",null,"2020-08-01",null,"until further notice",null,"EUR 150 per Booking",null,"EUR 150 per Booking"]
[null,"War Risk surcharge",null,null,"Arabian Gulf",null,"2020-08-01",null,"until further notice",null,"USD 53,5 per TEU",null,"USD 3,50 per W/M"]
[null,"Heavy Weight Surcharge as of Cargo weight 18t",null,null,"ALL",null,"2020-08-01",null,"until further notice",null,"USD 250 per 20DV",null,0]
[null,"BMSB - Stink bug to Oceania",null,null,"AU/NZ",null,"2021-09-01",null,"2022-08-31",null,"at cost",null,"EUR 25 per W/M (min. 100)"]
[null,"BMSB - Stink bug to Oceania",null,null,"AU/NZ",null,"2022-09-01",null,"until further notice",null,"at cost",null,"EUR 35 W/M (min. 100)"]
[]
[null,"Congestion Central America",null,null,"Caribbean/Central America",null,"2021-11-01",null,"2022-03-31",null,"EUR 2000 per container",null,"EUR 50 per W/M"]
[null,"Congestion Central America",null,null,"Caribbean/Central America",null,"2022-04-01",null,"until further notice",null,0,null,0]
[]
[null,"Panama Canal Emergency Surcharge",null,null,"Latam West Coast",null,"2024-01-01",null,"until further notice",null,"USD 150 per TEU",null,"USD 8 per W/M"]
[]
[]
[null,"Low Water Canada",null,null,"CA/Montreal port",null,"2022-01-01",null,"2022-03-31",null,"USD 200 per container",null,"USD 5 per W/M"]
[null,"Low Water Canada",null,null,"CA/Montreal port",null,"2022-04-01",null,"until furrther notice",null,0,null,0]
[]
[]
[]
[null,"Ovanstående tillägg räknas från skeppningsdatum och gäller tills vidare. "]
[null,"Övriga tillägg specificeras i kundofferterna alternativt i kundutskick.  "]
[null,"För övriga tillägg eller offert, kontakta oss via e-post: se.sm.got.oceantrade@dbschenker.com"]
[]
[]
[null,"The above additionals are calculated from the shipping date and applies until further notice."]
[null,"Other additionals are specified in customer quotes or in emails sent directly to customers."]
[null,"For other additionals or quotes, contact us via e-mail: se.sm.got.oceanpricing@dbschenker.com"]

{"sheet":"Fuel","index":2,"n_rows":18,"n_cols":10,"rows_kept":18,"cut":false,"hidden":false,"merged":[[4,2,4,3],[4,5,4,6],[4,8,4,9]]}
[]
[null,null,"Schenker Ocean - Fuel"]
[]
[]
[null,null,2022,null,null,2023,null,null,2024]
[]
[null,null,"Januari",0.36,null,"Januari","FCL:50,7% LCL:46,37% Rail:12,26%",null,"Januari","FCL:45,7% LCL:44,2% Rail:14,57%"]
[null,null,"Februari",0.37640000000000001,null,"Februari","FCL:51,2% LCL:46,4% Rail:13,14%",null,"Februari","FCL:37,7% LCL:34,21% Rail:10,53%"]
[null,null,"Mars",0.40710000000000002,null,"Mars","FCL:48,1% LCL:45,77% Rail:13,39%",null,"Mars","FCL:38,4% LCL:34,37% Rail:12,14%"]
[null,null,"April",0.5071,null,"April","FCL:45,7% LCL:43,67% Rail:14,52%",null,"April","FCL:37,7% LCL:33,92% Rail:10,65%"]
[null,null,"Maj","FCL:55,0% LCL: 49,45%",null,"Maj","FCL:44,2% LCL:42,44% Rail:14,08%",null,"Maj","FCL:38,1% LCL:34,47% Rail:10,54%"]
[null,null,"Juni","FCL:52,0% LCL: 47,71%",null,"Juni","FCL:41,2% LCL:39,65% Rail:13,05%",null,"Juni","FCL:36,1% LCL:32,92% Rail:9,99%"]
[null,null,"Juli","FCL:57,7% LCL: 50,12%",null,"Juli","FCL:42,6% LCL:40,99% Rail:13,95%",null,"Juli","FCL:35,3% LCL:31,92% Rail:10,39%"]
[null,null,"Augusti","FCL:57,7% LCL:51,94%",null,"Augusti","FCL:42,6% LCL:42,65% Rail:13,95%",null,"Augusti","FCL:35,3% LCL:31,92% Rail:10,39%"]
[null,null,"September","FCL:53,7% LCL:47,01%",null,"September","FCL:49,0% LCL:45,55% Rail:15,53%",null,"September","FCL:35,1% LCL:31,67% Rail:10,39%"]
[null,null,"Oktober","FCL:53,0% LCL: 48,36% Rail:13,76%",null,"Oktober","FCL:53,9% LCL:49,54% Rail:16,79%",null,"Oktober","FCL:33,49% LCL:29,49% Rail:8,54%"]
[null,null,"November","FCL:61,0% LCL: 52,05% Rail:15,20%",null,"November","FCL:53,2% LCL:50,04% Rail:16,72%",null,"November","FCL:33,8% LCL:29,88% Rail:8,66%"]
[null,null,"December","FCL:57,7% LCL:53,64% Rail:14,44%",null,"December","FCL:49,8% LCL:47,68% Rail:15,86%",null,"December","FCL:34,7% LCL:31% Rail:9,24%"]

{"sheet":"ETS","index":3,"n_rows":341,"n_cols":9,"rows_kept":341,"cut":false,"hidden":false,"merged":[[3,4,3,8]]}
[]
[]
[]
[null,null,null,null,"2024-10-24"]
["Region","Subregion","Area","Area Name","Schenker ETS 20'","Schenker ETS 40'/40HC","Schenker ETS 20RE","Schenker ETS 40RE","w/m"]
["MEA_EUR","AFR_MED","AFREAST_EURMEDBS","AFRICA EAST_EUR MED BLACK SEA",37,{"$f":"E6*2","v":74},{"$f":"E6*1.7","v":62.9},{"$f":"F6*1.7","v":125.8},{"$f":"ROUNDUP(F6/45,0)","v":2}]
["MEA_EUR","AFR_MED","AFREAST_EURMEDEAST","AFRICA EAST_EUR MED EAST",37,{"$f":"E7*2","v":74},{"$f":"E7*1.7","v":62.9},125.8,{"$f":"ROUNDUP(F7/45,0)","v":2}]
["MEA_EUR","AFR_MED","AFREAST_EURMEDWEST","AFRICA EAST_EUR MED WEST",37,74,62.9,125.8,2]
["MEA_EUR","AFR_MED","AFRLEVANTE_EURMEDBS","AFRICA LEVANTE_EUR MED BLACK SEA",37,74,62.9,125.8,2]
["MEA_EUR","AFR_MED","AFRLEVANTE_EURMEDEAST","AFRICA LEVANTE_EUR MED EAST",37,74,62.9,125.8,2]
["MEA_EUR","AFR_MED","AFRLEVANTE_EURMEDWEST","AFRICA LEVANTE_EUR MED WEST",37,74,62.9,125.8,2]
["MEA_EUR","AFR_MED","AFRNORTH_EURMEDBS","AFRICA NORTH_EUR MED BLACK SEA",37,74,62.9,125.8,2]
["MEA_EUR","AFR_MED","AFRNORTH_EURMEDEAST","AFRICA NORTH_EUR MED EAST",37,74,62.9,125.8,2]
["MEA_EUR","AFR_MED","AFRNORTH_EURMEDWEST","AFRICA NORTH_EUR MED WEST",37,74,62.9,125.8,2]
["MEA_EUR","AFR_MED","AFRREDSEA_EURMEDBS","AFRICA RED SEA_EUR MED BLACK SEA",37,74,62.9,125.8,2]
["MEA_EUR","AFR_MED","AFRREDSEA_EURMEDEAST","AFRICA RED SEA_EUR MED EAST",37,74,62.9,125.8,2]
["MEA_EUR","AFR_MED","AFRREDSEA_EURMEDWEST","AFRICA RED SEA_EUR MED WEST",37,74,62.9,125.8,2]
["MEA_EUR","AFR_MED","AFRSOUTH_EURMEDBS","AFRICA SOUTH_EUR MED BLACK SEA",37,74,62.9,125.8,2]
["MEA_EUR","AFR_MED","AFRSOUTH_EURMEDEAST","AFRICA SOUTH_EUR MED EAST",37,74,62.9,125.8,2]
["MEA_EUR","AFR_MED","AFRSOUTH_EURMEDWEST","AFRICA SOUTH_EUR MED WEST",37,74,62.9,125.8,2]
["MEA_EUR","AFR_MED","AFRWEST_EURMEDBS","AFRICA WEST_EUR MED BLACK SEA",42,84,71.399999999999991,142.79999999999998,2]
["MEA_EUR","AFR_MED","AFRWEST_EURMEDEAST","AFRICA WEST_EUR MED EAST",42,84,71.399999999999991,142.79999999999998,2]
["MEA_EUR","AFR_MED","AFRWEST_EURMEDWEST","AFRICA WEST_EUR MED WEST",42,84,71.399999999999991,142.79999999999998,2]
["MEA_EUR","AFR_NEU","AFREAST_EURNCP","AFRICA EAST_EUR NORTH CONTINENT PORTS",37,74,62.9,125.8,2]
["MEA_EUR","AFR_NEU","AFREAST_EURSCANBAL","AFRICA EAST_EUR SCANDINAVIA & BALTICS",37,74,62.9,125.8,2]
["MEA_EUR","AFR_NEU","AFREAST_EURUK","AFRICA EAST_EUR UK IRELAND",37,74,62.9,125.8,2]
["MEA_EUR","AFR_NEU","AFRLEVANTE_EURNCP","AFRICA LEVANTE_EUR NORTH CONTINENT PORTS",37,74,62.9,125.8,2]
["MEA_EUR","AFR_NEU","AFRLEVANTE_EURSCANBAL","AFRICA LEVANTE_EUR SCANDINAVIA & BALTICS",37,74,62.9,125.8,2]
["MEA_EUR","AFR_NEU","AFRLEVANTE_EURUK","AFRICA LEVANTE_EUR UK IRELAND",37,74,62.9,125.8,2]
["MEA_EUR","AFR_NEU","AFRNORTH_EURNCP","AFRICA NORTH_EUR NORTH CONTINENT PORTS",37,74,62.9,125.8,2]
["MEA_EUR","AFR_NEU","AFRNORTH_EURSCANBAL","AFRICA NORTH_EUR SCANDINAVIA & BALTICS",37,74,62.9,125.8,2]
["MEA_EUR","AFR_NEU","AFRNORTH_EURUK","AFRICA NORTH_EUR UK IRELAND",37,74,62.9,125.8,2]
["MEA_EUR","AFR_NEU","AFRREDSEA_EURNCP","AFRICA RED SEA_EUR NORTH CONTINENT PORTS",37,74,62.9,125.8,2]
["MEA_EUR","AFR_NEU","AFRREDSEA_EURSCANBAL","AFRICA RED SEA_EUR SCANDINAVIA & BALTICS",37,74,62.9,125.8,2]
["MEA_EUR","AFR_NEU","AFRREDSEA_EURUK","AFRICA RED SEA_EUR UK IRELAND",37,74,62.9,125.8,2]
["MEA_EUR","AFR_NEU","AFRSOUTH_EURNCP","AFRICA SOUTH_EUR NORTH CONTINENT PORTS",37,74,62.9,125.8,2]
["MEA_EUR","AFR_NEU","AFRSOUTH_EURSCANBAL","AFRICA SOUTH_EUR SCANDINAVIA & BALTICS",37,74,62.9,125.8,2]
["MEA_EUR","AFR_NEU","AFRSOUTH_EURUK","AFRICA SOUTH_EUR UK IRELAND",37,74,62.9,125.8,2]
["MEA_EUR","AFR_NEU","AFRWEST_EURNCP","AFRICA WEST_EUR NORTH CONTINENT PORTS",42,84,71.399999999999991,142.79999999999998,2]
["MEA_EUR","AFR_NEU","AFRWEST_EURSCANBAL","AFRICA WEST_EUR SCANDINAVIA & BALTICS",42,84,71.399999999999991,142.79999999999998,2]
["MEA_EUR","AFR_NEU","AFRWEST_EURUK","AFRICA WEST_EUR UK IRELAND",42,84,71.399999999999991,142.79999999999998,2]
["NORAM_EUR","CA_MED","CAEC_EURMEDBS","CANADA EAST COAST_EUR MED BLACK SEA",28,56,47.6,95.2,2]
["NORAM_EUR","CA_MED","CAEC_EURMEDEAST","CANADA EAST COAST_EUR MED EAST",28,56,47.6,95.2,2]
["NORAM_EUR","CA_MED","CAEC_EURMEDWEST","CANADA EAST COAST_EUR MED WEST",28,56,47.6,95.2,2]
["NORAM_EUR","CA_MED","CAWC_EURMEDBS","CANADA WEST COAST_EUR MED BLACK SEA",28,56,47.6,95.2,2]
["NORAM_EUR","CA_MED","CAWC_EURMEDEAST","CANADA WEST COAST_EUR MED EAST",28,56,47.6,95.2,2]
["NORAM_EUR","CA_MED","CAWC_EURMEDWEST","CANADA WEST COAST_EUR MED WEST",28,56,47.6,95.2,2]
["NORAM_EUR","CA_NEU","CAEC_EURNCP","CANADA EAST COAST_EUR NORTH CONTINENT PORTS",23,46,39.1,78.2,2]
["NORAM_EUR","CA_NEU","CAEC_EURSCANBAL","CANADA EAST COAST_EUR SCANDINAVIA & BALTICS",23,46,39.1,78.2,2]
["NORAM_EUR","CA_NEU","CAEC_EURUK","CANADA EAST COAST_EUR UK IRELAND",23,46,39.1,78.2,2]
["NORAM_EUR","CA_NEU","CAWC_EURNCP","CANADA WEST COAST_EUR NORTH CONTINENT PORTS",23,46,39.1,78.2,2]
["NORAM_EUR","CA_NEU","CAWC_EURSCANBAL","CANADA WEST COAST_EUR SCANDINAVIA & BALTICS",23,46,39.1,78.2,2]
["NORAM_EUR","CA_NEU","CAWC_EURUK","CANADA WEST COAST_EUR UK IRELAND",23,46,39.1,78.2,2]
["APAC_EUR","FAE_MED","APNEA_EURMEDBS","NORTH EAST ASIA_EUR MED BLACK SEA",30,60,{"$f":"E54*1.7","v":51},102,2]
["APAC_EUR","FAE_MED","APNEA_EURMEDEAST","NORTH EAST ASIA_EUR MED EAST",30,60,{"$f":"E55*1.7","v":51},102,2]
["APAC_EUR","FAE_MED","APNEA_EURMEDWEST","NORTH EAST ASIA_EUR MED WEST",30,60,51,102,2]
["APAC_EUR","FAE_MED","APSEA_EURMEDBS","SOUTH EAST ASIA_EUR MED BLACK SEA",30,60,51,102,2]
["APAC_EUR","FAE_MED","APSEA_EURMEDEAST","SOUTH EAST ASIA_EUR MED EAST",30,60,51,102,2]
["APAC_EUR","FAE_MED","APSEA_EURMEDWEST","SOUTH EAST ASIA_EUR MED WEST",30,60,51,102,2]
["APAC_EUR","FAE_NEU","APNEA_EURNCP","NORTH EAST ASIA_EUR NORTH CONTINENT PORTS",27,54,45.9,91.8,2]
["APAC_EUR","FAE_NEU","APNEA_EURSCANBAL","NORTH EAST ASIA_EUR SCANDINAVIA & BALTICS",27,54,45.9,91.8,2]
["APAC_EUR","FAE_NEU","APNEA_EURUK","NORTH EAST ASIA_EUR UK IRELAND",27,54,45.9,91.8,2]
["APAC_EUR","FAE_NEU","APSEA_EURNCP","SOUTH EAST ASIA_EUR NORTH CONTINENT PORTS",27,54,45.9,91.8,2]
["APAC_EUR","FAE_NEU","APSEA_EURSCANBAL","SOUTH EAST ASIA_EUR SCANDINAVIA & BALTICS",27,54,45.9,91.8,2]
["APAC_EUR","FAE_NEU","APSEA_EURUK","SOUTH EAST ASIA_EUR UK IRELAND",27,54,45.9,91.8,2]
["APAC_EUR","ISC_MED","ISCINDIA_EURMEDBS","INDIA_EUR MED BLACK SEA",33,66,56.1,112.2,2]
["APAC_EUR","ISC_MED","ISCINDIA_EURMEDEAST","INDIA_EUR MED EAST",33,66,56.1,112.2,2]
["APAC_EUR","ISC_MED","ISCINDIA_EURMEDWEST","INDIA_EUR MED WEST",33,66,56.1,112.2,2]
["APAC_EUR","ISC_MED","ISCOTHER_EURMEDBS","ISC OTHERS_EUR MED BLACK SEA",33,66,56.1,112.2,2]
["APAC_EUR","ISC_MED","ISCOTHER_EURMEDEAST","ISC OTHERS_EUR MED EAST",33,66,56.1,112.2,2]
["APAC_EUR","ISC_MED","ISCOTHER_EURMEDWEST","ISC OTHERS_EUR MED WEST",33,{"$f":"E71*2","v":66},{"$f":"E71*1.7","v":56.1},112.2,{"$f":"ROUNDUP(F71/45,0)","v":2}]
["APAC_EUR","ISC_NEU","ISCINDIA_EURNCP","INDIA_EUR NORTH CONTINENT PORTS",30,60,51,102,2]
["APAC_EUR","ISC_NEU","ISCINDIA_EURSCANBAL","INDIA_EUR SCANDINAVIA & BALTICS",30,60,51,102,2]
["APAC_EUR","ISC_NEU","ISCINDIA_EURUK","INDIA_EUR UK IRELAND",30,60,51,102,2]
["APAC_EUR","ISC_NEU","ISCOTHER_EURNCP","ISC OTHERS_EUR NORTH CONTINENT PORTS",30,60,51,102,2]
["APAC_EUR","ISC_NEU","ISCOTHER_EURSCANBAL","ISC OTHERS_EUR SCANDINAVIA & BALTICS",30,60,51,102,2]
["APAC_EUR","ISC_NEU","ISCOTHER_EURUK","ISC OTHERS_EUR UK IRELAND",30,60,51,102,2]
["LATAM_EUR","LAMX_MED","MXEC_EURMEDBS","MX EAST COAST_EUR MED BLACK SEA",26,52,44.199999999999996,88.399999999999991,2]
["LATAM_EUR","LAMX_MED","MXEC_EURMEDEAST","MX EAST COAST_EUR MED EAST",26,52,44.199999999999996,88.399999999999991,2]
["LATAM_EUR","LAMX_MED","MXEC_EURMEDWEST","MX EAST COAST_EUR MED WEST",26,52,44.199999999999996,88.399999999999991,2]
["LATAM_EUR","LAMX_MED","MXWC_EURMEDBS","MX WEST COAST_EUR MED BLACK SEA",26,52,44.199999999999996,88.399999999999991,2]
["LATAM_EUR","LAMX_MED","MXWC_EURMEDEAST","MX WEST COAST_EUR MED EAST",26,52,44.199999999999996,88.399999999999991,2]
["LATAM_EUR","LAMX_MED","MXWC_EURMEDWEST","MX WEST COAST_EUR MED WEST",26,52,44.199999999999996,88.399999999999991,2]
["LATAM_EUR","LAMX_NEU","MXEC_EURNCP","MX EAST COAST_EUR NORTH CONTINENT PORTS",38,76,64.599999999999994,129.19999999999999,2]
["LATAM_EUR","LAMX_NEU","MXEC_EURSCANBAL","MX EAST COAST_EUR SCANDINAVIA & BALTICS",38,76,64.599999999999994,129.19999999999999,2]
["LATAM_EUR","LAMX_NEU","MXEC_EURUK","MX EAST COAST_EUR UK IRELAND",38,76,64.599999999999994,129.19999999999999,2]
["LATAM_EUR","LAMX_NEU","MXWC_EURNCP","MX WEST COAST_EUR NORTH CONTINENT PORTS",38,76,64.599999999999994,129.19999999999999,2]
["LATAM_EUR","LAMX_NEU","MXWC_EURSCANBAL","MX WEST COAST_EUR SCANDINAVIA & BALTICS",38,76,64.599999999999994,129.19999999999999,2]
["LATAM_EUR","LAMX_NEU","MXWC_EURUK","MX WEST COAST_EUR UK IRELAND",38,76,64.599999999999994,129.19999999999999,2]
["EUR_MEA","MED_AFR","EURMEDBS_AFREAST","EUR MED BLACK SEA_AFRICA EAST",30,{"$f":"E90*2","v":60},51,102,2]
["EUR_MEA","MED_AFR","EURMEDBS_AFRLEVANTE","EUR MED BLACK SEA_AFRICA LEVANTE",18,{"$f":"E91*2","v":36},30.599999999999998,61.199999999999996,1]
["EUR_MEA","MED_AFR","EURMEDBS_AFRNORTH","EUR MED BLACK SEA_AFRICA NORTH",20,40,34,68,1]
["EUR_MEA","MED_AFR","EURMEDBS_AFRREDSEA","EUR MED BLACK SEA_AFRICA RED SEA",30,60,51,102,2]
["EUR_MEA","MED_AFR","EURMEDBS_AFRSOUTH","EUR MED BLACK SEA_AFRICA SOUTH",35,70,59.5,119,2]
["EUR_MEA","MED_AFR","EURMEDBS_AFRWEST","EUR MED BLACK SEA_AFRICA WEST",55,110,93.5,187,3]
["EUR_MEA","MED_AFR","EURMEDEAST_AFREAST","EUR MED EAST_AFRICA EAST",30,60,51,102,2]
["EUR_MEA","MED_AFR","EURMEDEAST_AFRLEVANTE","EUR MED EAST_AFRICA LEVANTE",18,36,30.599999999999998,61.199999999999996,1]
["EUR_MEA","MED_AFR","EURMEDEAST_AFRNORTH","EUR MED EAST_AFRICA NORTH",20,40,34,68,1]
["EUR_MEA","MED_AFR","EURMEDEAST_AFRREDSEA","EUR MED EAST_AFRICA RED SEA",30,60,51,102,2]
["EUR_MEA","MED_AFR","EURMEDEAST_AFRSOUTH","EUR MED EAST_AFRICA SOUTH",35,70,59.5,119,2]
["EUR_MEA","MED_AFR","EURMEDEAST_AFRWEST","EUR MED EAST_AFRICA WEST",55,110,93.5,187,3]
["EUR_MEA","MED_AFR","EURMEDWEST_AFREAST","EUR MED WEST_AFRICA EAST",30,60,51,102,2]
["EUR_MEA","MED_AFR","EURMEDWEST_AFRLEVANTE","EUR MED WEST_AFRICA LEVANTE",18,36,30.599999999999998,61.199999999999996,1]
["EUR_MEA","MED_AFR","EURMEDWEST_AFRNORTH","EUR MED WEST_AFRICA NORTH",20,40,34,68,1]
["EUR_MEA","MED_AFR","EURMEDWEST_AFRREDSEA","EUR MED WEST_AFRICA RED SEA",30,60,51,102,2]
["EUR_MEA","MED_AFR","EURMEDWEST_AFRSOUTH","EUR MED WEST_AFRICA SOUTH",35,70,59.5,119,2]
["EUR_MEA","MED_AFR","EURMEDWEST_AFRWEST","EUR MED WEST_AFRICA WEST",55,110,93.5,187,3]
["EUR_NORAM","MED_CA","EURMEDBS_CAEC","EUR MED BLACK SEA_CANADA EAST COAST",43,86,73.099999999999994,146.19999999999999,2]
["EUR_NORAM","MED_CA","EURMEDBS_CAWC","EUR MED BLACK SEA_CANADA WEST COAST",43,86,73.099999999999994,146.19999999999999,2]
["EUR_NORAM","MED_CA","EURMEDEAST_CAEC","EUR MED EAST_CANADA EAST COAST",43,86,73.099999999999994,146.19999999999999,2]
["EUR_NORAM","MED_CA","EURMEDEAST_CAWC","EUR MED EAST_CANADA WEST COAST",43,86,73.099999999999994,146.19999999999999,2]
["EUR_NORAM","MED_CA","EURMEDWEST_CAEC","EUR MED WEST_CANADA EAST COAST",43,86,73.099999999999994,146.19999999999999,2]
["EUR_NORAM","MED_CA","EURMEDWEST_CAWC","EUR MED WEST_CANADA WEST COAST",43,86,73.099999999999994,146.19999999999999,2]
["EUR_APAC","MED_FAE","EURMEDBS_APNEA","EUR MED BLACK SEA_NORTH EAST ASIA",28,56,47.6,95.2,2]
["EUR_APAC","MED_FAE","EURMEDBS_APSEA","EUR MED BLACK SEA_SOUTH EAST ASIA",28,56,47.6,95.2,2]
["EUR_APAC","MED_FAE","EURMEDEAST_APNEA","EUR MED EAST_NORTH EAST ASIA",28,56,{"$f":"E116*1.7","v":47.6},95.2,2]
["EUR_APAC","MED_FAE","EURMEDEAST_APSEA","EUR MED EAST_SOUTH EAST ASIA",28,56,47.6,95.2,2]
["EUR_APAC","MED_FAE","EURMEDWEST_APNEA","EUR MED WEST_NORTH EAST ASIA",28,56,47.6,95.2,2]
["EUR_APAC","MED_FAE","EURMEDWEST_APSEA","EUR MED WEST_SOUTH EAST ASIA",28,56,47.6,95.2,2]
["EUR_APAC","MED_ISC","EURMEDBS_ISCINDIA","EUR MED BLACK SEA_INDIA",45,90,76.5,153,2]
["EUR_APAC","MED_ISC","EURMEDBS_ISCOTHER","EUR MED BLACK SEA_ISC OTHERS",45,90,76.5,153,2]
["EUR_APAC","MED_ISC","EURMEDEAST_ISCINDIA","EUR MED EAST_INDIA",45,90,76.5,153,2]
["EUR_APAC","MED_ISC","EURMEDEAST_ISCOTHER","EUR MED EAST_ISC OTHERS",45,90,76.5,153,2]
["EUR_APAC","MED_ISC","EURMEDWEST_ISCINDIA","EUR MED WEST_INDIA",45,90,76.5,153,2]
["EUR_APAC","MED_ISC","EURMEDWEST_ISCOTHER","EUR MED WEST_ISC OTHERS",45,90,76.5,153,2]
["EUR_LATAM","MED_LAMX","EURMEDBS_MXEC","EUR MED BLACK SEA_MX EAST COAST",43,86,73.099999999999994,146.19999999999999,2]
["EUR_LATAM","MED_LAMX","EURMEDBS_MXWC","EUR MED BLACK SEA_MX WEST COAST",43,86,73.099999999999994,146.19999999999999,2]
["EUR_LATAM","MED_LAMX","EURMEDEAST_MXEC","EUR MED EAST_MX EAST COAST",43,86,73.099999999999994,146.19999999999999,2]
["EUR_LATAM","MED_LAMX","EURMEDEAST_MXWC","EUR MED EAST_MX WEST COAST",43,86,73.099999999999994,146.19999999999999,2]
["EUR_LATAM","MED_LAMX","EURMEDWEST_MXEC","EUR MED WEST_MX EAST COAST",43,86,73.099999999999994,146.19999999999999,2]
["EUR_LATAM","MED_LAMX","EURMEDWEST_MXWC","EUR MED WEST_MX WEST COAST",43,86,73.099999999999994,146.19999999999999,2]
["EUR_EUR","MED_MED","EURMEDBS_EURMEDBS","EUR MED BLACK SEA_EUR MED BLACK SEA",19,38,{"$f":"E132*1.7","v":32.299999999999997},64.599999999999994,1]
["EUR_EUR","MED_MED","EURMEDBS_EURMEDEAST","EUR MED BLACK SEA_EUR MED EAST",19,38,32.299999999999997,64.599999999999994,1]
["EUR_EUR","MED_MED","EURMEDBS_EURMEDWEST","EUR MED BLACK SEA_EUR MED WEST",19,38,32.299999999999997,64.599999999999994,1]
["EUR_EUR","MED_MED","EURMEDEAST_EURMEDBS","EUR MED EAST_EUR MED BLACK SEA",19,{"$f":"E135*2","v":38},32.299999999999997,64.599999999999994,{"$f":"ROUNDUP(F135/45,0)","v":1}]
["EUR_EUR","MED_MED","EURMEDEAST_EURMEDEAST","EUR MED EAST_EUR MED EAST",19,38,32.299999999999997,64.599999999999994,1]
["EUR_EUR","MED_MED","EURMEDEAST_EURMEDWEST","EUR MED EAST_EUR MED WEST",19,38,32.299999999999997,64.599999999999994,1]
["EUR_EUR","MED_MED","EURMEDWEST_EURMEDBS","EUR MED WEST_EUR MED BLACK SEA",19,38,32.299999999999997,64.599999999999994,1]
["EUR_EUR","MED_MED","EURMEDWEST_EURMEDEAST","EUR MED WEST_EUR MED EAST",19,38,32.299999999999997,64.599999999999994,1]
["EUR_EUR","MED_MED","EURMEDWEST_EURMEDWEST","EUR MED WEST_EUR MED WEST",19,38,32.299999999999997,64.599999999999994,1]
["EUR_EUR","MED_NEU","EURMEDBS_EURNCP","EUR MED BLACK SEA_EUR NORTH CONTINENT PORTS",19,38,32.299999999999997,64.599999999999994,1]
["EUR_EUR","MED_NEU","EURMEDBS_EURSCANBAL","EUR MED BLACK SEA_EUR SCANDINAVIA & BALTICS",19,38,32.299999999999997,64.599999999999994,1]
["EUR_EUR","MED_NEU","EURMEDBS_EURUK","EUR MED BLACK SEA_EUR UK IRELAND",19,38,32.299999999999997,64.599999999999994,1]
["EUR_EUR","MED_NEU","EURMEDEAST_EURNCP","EUR MED EAST_EUR NORTH CONTINENT PORTS",19,38,32.299999999999997,64.599999999999994,1]
["EUR_EUR","MED_NEU","EURMEDEAST_EURSCANBAL","EUR MED EAST_EUR SCANDINAVIA & BALTICS",19,38,32.299999999999997,64.599999999999994,1]
["EUR_EUR","MED_NEU","EURMEDEAST_EURUK","EUR MED EAST_EUR UK IRELAND",19,38,32.299999999999997,64.599999999999994,1]
["EUR_EUR","MED_NEU","EURMEDWEST_EURNCP","EUR MED WEST_EUR NORTH CONTINENT PORTS",19,38,32.299999999999997,64.599999999999994,1]
["EUR_EUR","MED_NEU","EURMEDWEST_EURSCANBAL","EUR MED WEST_EUR SCANDINAVIA & BALTICS",19,38,32.299999999999997,64.599999999999994,1]
["EUR_EUR","MED_NEU","EURMEDWEST_EURUK","EUR MED WEST_EUR UK IRELAND",19,38,32.299999999999997,64.599999999999994,1]
["EUR_MEA","MED_NME","EURMEDBS_NMEARABGUL","EUR MED BLACK SEA_NME ARAB GULF",40,80,68,136,2]
["EUR_MEA","MED_NME","EURMEDBS_NMELEVANTE","EUR MED BLACK SEA_NME LEVANTE",20,40,34,68,1]
["EUR_MEA","MED_NME","EURMEDBS_NMEREDSEA","EUR MED BLACK SEA_NME RED SEA",40,80,68,136,2]
["EUR_MEA","MED_NME","EURMEDEAST_NMEARABGUL","EUR MED EAST_NME ARAB GULF",40,80,68,136,2]
["EUR_MEA","MED_NME","EURMEDEAST_NMELEVANTE","EUR MED EAST_NME LEVANTE",20,40,34,68,1]
["EUR_MEA","MED_NME","EURMEDEAST_NMEREDSEA","EUR MED EAST_NME RED SEA",40,80,68,136,2]
["EUR_MEA","MED_NME","EURMEDWEST_NMEARABGUL","EUR MED WEST_NME ARAB GULF",40,80,68,136,2]
["EUR_MEA","MED_NME","EURMEDWEST_NMELEVANTE","EUR MED WEST_NME LEVANTE",20,40,34,68,1]
["EUR_MEA","MED_NME","EURMEDWEST_NMEREDSEA","EUR MED WEST_NME RED SEA",40,80,68,136,2]
["EUR_APAC","MED_OCE","EURMEDBS_OCEAUNZ","EUR MED BLACK SEA_AUSTRALIA & NEW ZEALAND",35,70,{"$f":"E159*1.7","v":59.5},119,2]
["EUR_APAC","MED_OCE","EURMEDBS_OCEISLANDS","EUR MED BLACK SEA_OCEANIA PACIFIC ISLANDS",35,70,{"$f":"E160*1.7","v":59.5},119,2]
["EUR_APAC","MED_OCE","EURMEDEAST_OCEAUNZ","EUR MED EAST_AUSTRALIA & NEW ZEALAND",35,70,59.5,119,2]
["EUR_APAC","MED_OCE","EURMEDEAST_OCEISLANDS","EUR MED EAST_OCEANIA PACIFIC ISLANDS",35,70,59.5,119,2]
["EUR_APAC","MED_OCE","EURMEDWEST_OCEAUNZ","EUR MED WEST_AUSTRALIA & NEW ZEALAND",35,70,59.5,119,2]
["EUR_APAC","MED_OCE","EURMEDWEST_OCEISLANDS","EUR MED WEST_OCEANIA PACIFIC ISLANDS",35,70,59.5,119,2]
["EUR_LATAM","MED_SAMCC","EURMEDBS_LACC","EUR MED BLACK SEA_CENTRAL AMERICA AND CARIBBEAN",43,86,73.099999999999994,146.19999999999999,2]
["EUR_LATAM","MED_SAMCC","EURMEDBS_SAEC","EUR MED BLACK SEA_SOUTH AMERICA EAST COAST",33,66,56.1,112.2,2]
["EUR_LATAM","MED_SAMCC","EURMEDBS_SAWC","EUR MED BLACK SEA_SOUTH AMERICA WEST COAST",43,86,73.099999999999994,146.19999999999999,2]
["EUR_LATAM","MED_SAMCC","EURMEDEAST_LACC","EUR MED EAST_CENTRAL AMERICA AND CARIBBEAN",43,86,73.099999999999994,146.19999999999999,2]
["EUR_LATAM","MED_SAMCC","EURMEDEAST_SAEC","EUR MED EAST_SOUTH AMERICA EAST COAST",33,66,56.1,112.2,2]
["EUR_LATAM","MED_SAMCC","EURMEDEAST_SAWC","EUR MED EAST_SOUTH AMERICA WEST COAST",43,86,73.099999999999994,146.19999999999999,2]
["EUR_LATAM","MED_SAMCC","EURMEDWEST_LACC","EUR MED WEST_CENTRAL AMERICA AND CARIBBEAN",43,86,73.099999999999994,146.19999999999999,2]
["EUR_LATAM","MED_SAMCC","EURMEDWEST_SAEC","EUR MED WEST_SOUTH AMERICA EAST COAST",33,66,56.1,112.2,2]
["EUR_LATAM","MED_SAMCC","EURMEDWEST_SAWC","EUR MED WEST_SOUTH AMERICA WEST COAST",43,86,73.099999999999994,146.19999999999999,2]
["EUR_NORAM","MED_US","EURMEDBS_USEC","EUR MED BLACK SEA_USA EAST COAST",43,86,73.099999999999994,146.19999999999999,2]
["EUR_NORAM","MED_US","EURMEDBS_USGC","EUR MED BLACK SEA_USA GULF COAST",43,86,73.099999999999994,146.19999999999999,2]
["EUR_NORAM","MED_US","EURMEDBS_USWC","EUR MED BLACK SEA_USA WEST COAST",43,86,73.099999999999994,146.19999999999999,2]
["EUR_NORAM","MED_US","EURMEDEAST_USEC","EUR MED EAST_USA EAST COAST",43,86,73.099999999999994,146.19999999999999,2]
["EUR_NORAM","MED_US","EURMEDEAST_USGC","EUR MED EAST_USA GULF COAST",43,86,73.099999999999994,146.19999999999999,2]
["EUR_NORAM","MED_US","EURMEDEAST_USWC","EUR MED EAST_USA WEST COAST",43,86,73.099999999999994,146.19999999999999,2]
["EUR_NORAM","MED_US","EURMEDWEST_USEC","EUR MED WEST_USA EAST COAST",43,86,73.099999999999994,146.19999999999999,2]
["EUR_NORAM","MED_US","EURMEDWEST_USGC","EUR MED WEST_USA GULF COAST",43,86,73.099999999999994,146.19999999999999,2]
["EUR_NORAM","MED_US","EURMEDWEST_USWC","EUR MED WEST_USA WEST COAST",43,86,73.099999999999994,146.19999999999999,2]
["EUR_MEA","NEU_AFR","EURNCP_AFREAST","EUR NORTH CONTINENT PORTS_AFRICA EAST",27,54,45.9,91.8,2]
["EUR_MEA","NEU_AFR","EURNCP_AFRLEVANTE","EUR NORTH CONTINENT PORTS_AFRICA LEVANTE",20,40,34,68,1]
["EUR_MEA","NEU_AFR","EURNCP_AFRNORTH","EUR NORTH CONTINENT PORTS_AFRICA NORTH",20,40,34,68,1]
["EUR_MEA","NEU_AFR","EURNCP_AFRREDSEA","EUR NORTH CONTINENT PORTS_AFRICA RED SEA",30,60,51,102,2]
["EUR_MEA","NEU_AFR","EURNCP_AFRSOUTH","EUR NORTH CONTINENT PORTS_AFRICA SOUTH",35,70,59.5,119,2]
["EUR_MEA","NEU_AFR","EURNCP_AFRWEST","EUR NORTH CONTINENT PORTS_AFRICA WEST",43,86,73.099999999999994,146.19999999999999,2]
["EUR_MEA","NEU_AFR","EURSCANBAL_AFREAST","EUR SCANDINAVIA & BALTICS_AFRICA EAST",27,54,45.9,91.8,2]
["EUR_MEA","NEU_AFR","EURSCANBAL_AFRLEVANTE","EUR SCANDINAVIA & BALTICS_AFRICA LEVANTE",20,40,34,68,1]
["EUR_MEA","NEU_AFR","EURSCANBAL_AFRNORTH","EUR SCANDINAVIA & BALTICS_AFRICA NORTH",20,40,34,68,1]
["EUR_MEA","NEU_AFR","EURSCANBAL_AFRREDSEA","EUR SCANDINAVIA & BALTICS_AFRICA RED SEA",30,60,51,102,2]
["EUR_MEA","NEU_AFR","EURSCANBAL_AFRSOUTH","EUR SCANDINAVIA & BALTICS_AFRICA SOUTH",35,70,59.5,119,2]
["EUR_MEA","NEU_AFR","EURSCANBAL_AFRWEST","EUR SCANDINAVIA & BALTICS_AFRICA WEST",43,86,{"$f":"E194*1.7","v":73.099999999999994},146.19999999999999,2]
["EUR_MEA","NEU_AFR","EURUK_AFREAST","EUR UK IRELAND_AFRICA EAST",27,54,45.9,91.8,2]
["EUR_MEA","NEU_AFR","EURUK_AFRLEVANTE","EUR UK IRELAND_AFRICA LEVANTE",20,40,34,68,1]
["EUR_MEA","NEU_AFR","EURUK_AFRNORTH","EUR UK IRELAND_AFRICA NORTH",20,40,34,68,1]
["EUR_MEA","NEU_AFR","EURUK_AFRREDSEA","EUR UK IRELAND_AFRICA RED SEA",30,60,51,102,2]
["EUR_MEA","NEU_AFR","EURUK_AFRSOUTH","EUR UK IRELAND_AFRICA SOUTH",35,{"$f":"E199*2","v":70},{"$f":"E199*1.7","v":59.5},119,{"$f":"ROUNDUP(F199/45,0)","v":2}]
["EUR_MEA","NEU_AFR","EURUK_AFRWEST","EUR UK IRELAND_AFRICA WEST",43,86,73.099999999999994,146.19999999999999,2]
["EUR_NORAM","NEU_CA","EURNCP_CAEC","EUR NORTH CONTINENT PORTS_CANADA EAST COAST",43,86,73.099999999999994,146.19999999999999,2]
["EUR_NORAM","NEU_CA","EURNCP_CAWC","EUR NORTH CONTINENT PORTS_CANADA WEST COAST",43,86,73.099999999999994,146.19999999999999,2]
["EUR_NORAM","NEU_CA","EURSCANBAL_CAEC","EUR SCANDINAVIA & BALTICS_CANADA EAST COAST",43,86,73.099999999999994,146.19999999999999,2]
["EUR_NORAM","NEU_CA","EURSCANBAL_CAWC","EUR SCANDINAVIA & BALTICS_CANADA WEST COAST",43,86,73.099999999999994,146.19999999999999,2]
["EUR_NORAM","NEU_CA","EURUK_CAEC","EUR UK IRELAND_CANADA EAST COAST",43,86,73.099999999999994,146.19999999999999,2]
["EUR_NORAM","NEU_CA","EURUK_CAWC","EUR UK IRELAND_CANADA WEST COAST",43,86,73.099999999999994,146.19999999999999,2]
["EUR_APAC","NEU_FAE","EURNCP_APNEA","EUR NORTH CONTINENT PORTS_NORTH EAST ASIA",18,36,30.599999999999998,61.199999999999996,1]
["EUR_APAC","NEU_FAE","EURNCP_APSEA","EUR NORTH CONTINENT PORTS_SOUTH EAST ASIA",18,36,30.599999999999998,61.199999999999996,1]
["EUR_APAC","NEU_FAE","EURSCANBAL_APNEA","EUR SCANDINAVIA & BALTICS_NORTH EAST ASIA",18,36,30.599999999999998,61.199999999999996,1]
["EUR_APAC","NEU_FAE","EURSCANBAL_APSEA","EUR SCANDINAVIA & BALTICS_SOUTH EAST ASIA",18,36,30.599999999999998,61.199999999999996,1]
["EUR_APAC","NEU_FAE","EURUK_APNEA","EUR UK IRELAND_NORTH EAST ASIA",18,36,30.599999999999998,61.199999999999996,1]
["EUR_APAC","NEU_FAE","EURUK_APSEA","EUR UK IRELAND_SOUTH EAST ASIA",18,36,30.599999999999998,61.199999999999996,1]
["EUR_APAC","NEU_ISC","EURNCP_ISCINDIA","EUR NORTH CONTINENT PORTS_INDIA",30,60,51,102,2]
["EUR_APAC","NEU_ISC","EURNCP_ISCOTHER","EUR NORTH CONTINENT PORTS_ISC OTHERS",30,60,51,102,2]
["EUR_APAC","NEU_ISC","EURSCANBAL_ISCINDIA","EUR SCANDINAVIA & BALTICS_INDIA",30,60,{"$f":"E215*1.7","v":51},102,2]
["EUR_APAC","NEU_ISC","EURSCANBAL_ISCOTHER","EUR SCANDINAVIA & BALTICS_ISC OTHERS",30,60,51,102,2]
["EUR_APAC","NEU_ISC","EURUK_ISCINDIA","EUR UK IRELAND_INDIA",30,60,51,102,2]
["EUR_APAC","NEU_ISC","EURUK_ISCOTHER","EUR UK IRELAND_ISC OTHERS",30,60,51,102,2]
["EUR_LATAM","NEU_LAMX","EURNCP_MXEC","EUR NORTH CONTINENT PORTS_MX EAST COAST",43,86,73.099999999999994,146.19999999999999,2]
["EUR_LATAM","NEU_LAMX","EURNCP_MXWC","EUR NORTH CONTINENT PORTS_MX WEST COAST",43,86,73.099999999999994,146.19999999999999,2]
["EUR_LATAM","NEU_LAMX","EURSCANBAL_MXEC","EUR SCANDINAVIA & BALTICS_MX EAST COAST",43,86,73.099999999999994,146.19999999999999,2]
["EUR_LATAM","NEU_LAMX","EURSCANBAL_MXWC","EUR SCANDINAVIA & BALTICS_MX WEST COAST",43,86,73.099999999999994,146.19999999999999,2]
["EUR_LATAM","NEU_LAMX","EURUK_MXEC","EUR UK IRELAND_MX EAST COAST",43,86,73.099999999999994,146.19999999999999,2]
["EUR_LATAM","NEU_LAMX","EURUK_MXWC","EUR UK IRELAND_MX WEST COAST",43,86,73.099999999999994,146.19999999999999,2]
["EUR_EUR","NEU_MED","EURNCP_EURMEDBS","EUR NORTH CONTINENT PORTS_EUR MED BLACK SEA",19,38,32.299999999999997,64.599999999999994,1]
["EUR_EUR","NEU_MED","EURNCP_EURMEDEAST","EUR NORTH CONTINENT PORTS_EUR MED EAST",19,38,32.299999999999997,64.599999999999994,1]
["EUR_EUR","NEU_MED","EURNCP_EURMEDWEST","EUR NORTH CONTINENT PORTS_EUR MED WEST",19,38,32.299999999999997,64.599999999999994,1]
["EUR_EUR","NEU_MED","EURSCANBAL_EURMEDBS","EUR SCANDINAVIA & BALTICS_EUR MED BLACK SEA",19,38,32.299999999999997,64.599999999999994,1]
["EUR_EUR","NEU_MED","EURSCANBAL_EURMEDEAST","EUR SCANDINAVIA & BALTICS_EUR MED EAST",19,38,32.299999999999997,64.599999999999994,1]
["EUR_EUR","NEU_MED","EURSCANBAL_EURMEDWEST","EUR SCANDINAVIA & BALTICS_EUR MED WEST",19,38,32.299999999999997,64.599999999999994,1]
["EUR_EUR","NEU_MED","EURUK_EURMEDBS","EUR UK IRELAND_EUR MED BLACK SEA",19,38,32.299999999999997,64.599999999999994,1]
["EUR_EUR","NEU_MED","EURUK_EURMEDEAST","EUR UK IRELAND_EUR MED EAST",19,38,32.299999999999997,64.599999999999994,1]
["EUR_EUR","NEU_MED","EURUK_EURMEDWEST","EUR UK IRELAND_EUR MED WEST",19,38,32.299999999999997,64.599999999999994,1]
["EUR_EUR","NEU_NEU","EURNCP_EURNCP","EUR NORTH CONTINENT PORTS_EUR NORTH CONTINENT PORTS",25,50,42.5,85,2]
["EUR_EUR","NEU_NEU","EURNCP_EURSCANBAL","EUR NORTH CONTINENT PORTS_EUR SCANDINAVIA & BALTICS",25,50,42.5,85,2]
["EUR_EUR","NEU_NEU","EURNCP_EURUK","EUR NORTH CONTINENT PORTS_EUR UK IRELAND",25,50,42.5,85,2]
["EUR_EUR","NEU_NEU","EURSCANBAL_EURNCP","EUR SCANDINAVIA & BALTICS_EUR NORTH CONTINENT PORTS",25,50,42.5,85,2]
["EUR_EUR","NEU_NEU","EURSCANBAL_EURSCANBAL","EUR SCANDINAVIA & BALTICS_EUR SCANDINAVIA & BALTICS",25,50,42.5,85,2]
["EUR_EUR","NEU_NEU","EURSCANBAL_EURUK","EUR SCANDINAVIA & BALTICS_EUR UK IRELAND",25,50,42.5,85,2]
["EUR_EUR","NEU_NEU","EURUK_EURNCP","EUR UK IRELAND_EUR NORTH CONTINENT PORTS",25,50,42.5,85,2]
["EUR_EUR","NEU_NEU","EURUK_EURSCANBAL","EUR UK IRELAND_EUR SCANDINAVIA & BALTICS",25,50,42.5,85,2]
["EUR_EUR","NEU_NEU","EURUK_EURUK","EUR UK IRELAND_EUR UK IRELAND",25,50,42.5,85,2]
["EUR_MEA","NEU_NME","EURNCP_NMEARABGUL","EUR NORTH CONTINENT PORTS_NME ARAB GULF",30,60,51,102,2]
["EUR_MEA","NEU_NME","EURNCP_NMELEVANTE","EUR NORTH CONTINENT PORTS_NME LEVANTE",20,40,34,68,1]
["EUR_MEA","NEU_NME","EURNCP_NMEREDSEA","EUR NORTH CONTINENT PORTS_NME RED SEA",30,60,51,102,2]
["EUR_MEA","NEU_NME","EURSCANBAL_NMEARABGUL","EUR SCANDINAVIA & BALTICS_NME ARAB GULF",30,60,51,102,2]
["EUR_MEA","NEU_NME","EURSCANBAL_NMELEVANTE","EUR SCANDINAVIA & BALTICS_NME LEVANTE",20,40,34,68,1]
["EUR_MEA","NEU_NME","EURSCANBAL_NMEREDSEA","EUR SCANDINAVIA & BALTICS_NME RED SEA",30,60,51,102,2]
["EUR_MEA","NEU_NME","EURUK_NMEARABGUL","EUR UK IRELAND_NME ARAB GULF",30,60,51,102,2]
["EUR_MEA","NEU_NME","EURUK_NMELEVANTE","EUR UK IRELAND_NME LEVANTE",20,40,34,68,1]
["EUR_MEA","NEU_NME","EURUK_NMEREDSEA","EUR UK IRELAND_NME RED SEA",30,60,51,102,2]
["EUR_APAC","NEU_OCE","EURNCP_OCEAUNZ","EUR NORTH CONTINENT PORTS_AUSTRALIA & NEW ZEALAND",35,70,59.5,119,2]
["EUR_APAC","NEU_OCE","EURNCP_OCEISLANDS","EUR NORTH CONTINENT PORTS_OCEANIA PACIFIC ISLANDS",35,70,59.5,119,2]
["EUR_APAC","NEU_OCE","EURSCANBAL_OCEAUNZ","EUR SCANDINAVIA & BALTICS_AUSTRALIA & NEW ZEALAND",35,70,59.5,119,2]
["EUR_APAC","NEU_OCE","EURSCANBAL_OCEISLANDS","EUR SCANDINAVIA & BALTICS_OCEANIA PACIFIC ISLANDS",35,70,59.5,119,2]
["EUR_APAC","NEU_OCE","EURUK_OCEAUNZ","EUR UK IRELAND_AUSTRALIA & NEW ZEALAND",35,70,59.5,119,2]
["EUR_APAC","NEU_OCE","EURUK_OCEISLANDS","EUR UK IRELAND_OCEANIA PACIFIC ISLANDS",35,70,59.5,119,2]
["EUR_LATAM","NEU_SAMCC","EURNCP_LACC","EUR NORTH CONTINENT PORTS_CENTRAL AMERICA AND CARIBBEAN",43,86,73.099999999999994,146.19999999999999,2]
["EUR_LATAM","NEU_SAMCC","EURNCP_SAEC","EUR NORTH CONTINENT PORTS_SOUTH AMERICA EAST COAST",28,56,47.6,95.2,2]
["EUR_LATAM","NEU_SAMCC","EURNCP_SAWC","EUR NORTH CONTINENT PORTS_SOUTH AMERICA WEST COAST",43,86,73.099999999999994,146.19999999999999,2]
["EUR_LATAM","NEU_SAMCC","EURSCANBAL_LACC","EUR SCANDINAVIA & BALTICS_CENTRAL AMERICA AND CARIBBEAN",43,86,73.099999999999994,146.19999999999999,2]
["EUR_LATAM","NEU_SAMCC","EURSCANBAL_SAEC","EUR SCANDINAVIA & BALTICS_SOUTH AMERICA EAST COAST",28,56,47.6,95.2,2]
["EUR_LATAM","NEU_SAMCC","EURSCANBAL_SAWC","EUR SCANDINAVIA & BALTICS_SOUTH AMERICA WEST COAST",43,{"$f":"E263*2","v":86},73.099999999999994,146.19999999999999,{"$f":"ROUNDUP(F263/45,0)","v":2}]
["EUR_LATAM","NEU_SAMCC","EURUK_LACC","EUR UK IRELAND_CENTRAL AMERICA AND CARIBBEAN",43,86,73.099999999999994,146.19999999999999,2]
["EUR_LATAM","NEU_SAMCC","EURUK_SAEC","EUR UK IRELAND_SOUTH AMERICA EAST COAST",28,56,47.6,95.2,2]
["EUR_LATAM","NEU_SAMCC","EURUK_SAWC","EUR UK IRELAND_SOUTH AMERICA WEST COAST",43,86,73.099999999999994,146.19999999999999,2]
["EUR_NORAM","NEU_US","EURNCP_USEC","EUR NORTH CONTINENT PORTS_USA EAST COAST",43,86,73.099999999999994,146.19999999999999,2]
["EUR_NORAM","NEU_US","EURNCP_USGC","EUR NORTH CONTINENT PORTS_USA GULF COAST",43,86,73.099999999999994,146.19999999999999,2]
["EUR_NORAM","NEU_US","EURNCP_USWC","EUR NORTH CONTINENT PORTS_USA WEST COAST",43,86,73.099999999999994,146.19999999999999,2]
["EUR_NORAM","NEU_US","EURSCANBAL_USEC","EUR SCANDINAVIA & BALTICS_USA EAST COAST",43,86,73.099999999999994,146.19999999999999,2]
["EUR_NORAM","NEU_US","EURSCANBAL_USGC","EUR SCANDINAVIA & BALTICS_USA GULF COAST",43,86,73.099999999999994,146.19999999999999,2]
["EUR_NORAM","NEU_US","EURSCANBAL_USWC","EUR SCANDINAVIA & BALTICS_USA WEST COAST",43,86,73.099999999999994,146.19999999999999,2]
["EUR_NORAM","NEU_US","EURUK_USEC","EUR UK IRELAND_USA EAST COAST",43,86,73.099999999999994,146.19999999999999,2]
["EUR_NORAM","NEU_US","EURUK_USGC","EUR UK IRELAND_USA GULF COAST",43,86,73.099999999999994,146.19999999999999,2]
["EUR_NORAM","NEU_US","EURUK_USWC","EUR UK IRELAND_USA WEST COAST",43,86,73.099999999999994,146.19999999999999,2]
["MEA_EUR","NME_MED","NMEARABGUL_EURMEDBS","NME ARAB GULF_EUR MED BLACK SEA",26,52,44.199999999999996,88.399999999999991,2]
["MEA_EUR","NME_MED","NMEARABGUL_EURMEDEAST","NME ARAB GULF_EUR MED EAST",26,52,{"$f":"E277*1.7","v":44.199999999999996},88.399999999999991,2]
["MEA_EUR","NME_MED","NMEARABGUL_EURMEDWEST","NME ARAB GULF_EUR MED WEST",26,52,44.199999999999996,88.399999999999991,2]
["MEA_EUR","NME_MED","NMELEVANTE_EURMEDBS","NME LEVANTE_EUR MED BLACK SEA",26,52,44.199999999999996,88.399999999999991,2]
["MEA_EUR","NME_MED","NMELEVANTE_EURMEDEAST","NME LEVANTE_EUR MED EAST",26,52,44.199999999999996,88.399999999999991,2]
["MEA_EUR","NME_MED","NMELEVANTE_EURMEDWEST","NME LEVANTE_EUR MED WEST",26,52,44.199999999999996,88.399999999999991,2]
["MEA_EUR","NME_MED","NMEREDSEA_EURMEDBS","NME RED SEA_EUR MED BLACK SEA",26,52,44.199999999999996,88.399999999999991,2]
["MEA_EUR","NME_MED","NMEREDSEA_EURMEDEAST","NME RED SEA_EUR MED EAST",26,52,44.199999999999996,88.399999999999991,2]
["MEA_EUR","NME_MED","NMEREDSEA_EURMEDWEST","NME RED SEA_EUR MED WEST",26,52,44.199999999999996,88.399999999999991,2]
["MEA_EUR","NME_NEU","NMEARABGUL_EURNCP","NME ARAB GULF_EUR NORTH CONTINENT PORTS",20,40,34,68,1]
["MEA_EUR","NME_NEU","NMEARABGUL_EURSCANBAL","NME ARAB GULF_EUR SCANDINAVIA & BALTICS",20,40,34,68,1]
["MEA_EUR","NME_NEU","NMEARABGUL_EURUK","NME ARAB GULF_EUR UK IRELAND",20,40,34,68,1]
["MEA_EUR","NME_NEU","NMELEVANTE_EURNCP","NME LEVANTE_EUR NORTH CONTINENT PORTS",20,40,34,68,1]
["MEA_EUR","NME_NEU","NMELEVANTE_EURSCANBAL","NME LEVANTE_EUR SCANDINAVIA & BALTICS",20,40,34,68,1]
["MEA_EUR","NME_NEU","NMELEVANTE_EURUK","NME LEVANTE_EUR UK IRELAND",20,40,34,68,1]
["MEA_EUR","NME_NEU","NMEREDSEA_EURNCP","NME RED SEA_EUR NORTH CONTINENT PORTS",20,40,34,68,1]
["MEA_EUR","NME_NEU","NMEREDSEA_EURSCANBAL","NME RED SEA_EUR SCANDINAVIA & BALTICS",20,40,34,68,1]
["MEA_EUR","NME_NEU","NMEREDSEA_EURUK","NME RED SEA_EUR UK IRELAND",20,40,34,68,1]
["APAC_EUR","OCE_MED","OCEAUNZ_EURMEDBS","AUSTRALIA & NEW ZEALAND_EUR MED BLACK SEA",22,44,37.4,74.8,1]
["APAC_EUR","OCE_MED","OCEAUNZ_EURMEDEAST","AUSTRALIA & NEW ZEALAND_EUR MED EAST",22,44,37.4,74.8,1]
["APAC_EUR","OCE_MED","OCEAUNZ_EURMEDWEST","AUSTRALIA & NEW ZEALAND_EUR MED WEST",22,44,37.4,74.8,1]
["APAC_EUR","OCE_MED","OCEISLANDS_EURMEDBS","OCEANIA PACIFIC ISLANDS_EUR MED BLACK SEA",22,44,37.4,74.8,1]
["APAC_EUR","OCE_MED","OCEISLANDS_EURMEDEAST","OCEANIA PACIFIC ISLANDS_EUR MED EAST",22,44,37.4,74.8,1]
["APAC_EUR","OCE_MED","OCEISLANDS_EURMEDWEST","OCEANIA PACIFIC ISLANDS_EUR MED WEST",22,44,37.4,74.8,1]
["APAC_EUR","OCE_NEU","OCEAUNZ_EURNCP","AUSTRALIA & NEW ZEALAND_EUR NORTH CONTINENT PORTS",22,44,37.4,74.8,1]
["APAC_EUR","OCE_NEU","OCEAUNZ_EURSCANBAL","AUSTRALIA & NEW ZEALAND_EUR SCANDINAVIA & BALTICS",22,44,37.4,74.8,1]
["APAC_EUR","OCE_NEU","OCEAUNZ_EURUK","AUSTRALIA & NEW ZEALAND_EUR UK IRELAND",22,44,37.4,74.8,1]
["APAC_EUR","OCE_NEU","OCEISLANDS_EURNCP","OCEANIA PACIFIC ISLANDS_EUR NORTH CONTINENT PORTS",22,44,37.4,74.8,1]
["APAC_EUR","OCE_NEU","OCEISLANDS_EURSCANBAL","OCEANIA PACIFIC ISLANDS_EUR SCANDINAVIA & BALTICS",22,44,37.4,74.8,1]
["APAC_EUR","OCE_NEU","OCEISLANDS_EURUK","OCEANIA PACIFIC ISLANDS_EUR UK IRELAND",22,44,37.4,74.8,1]
["LATAM_EUR","SAMCC_MED","LACC_EURMEDBS","CENTRAL AMERICA AND CARIBBEAN_EUR MED BLACK SEA",32,64,54.4,108.8,2]
["LATAM_EUR","SAMCC_MED","LACC_EURMEDEAST","CENTRAL AMERICA AND CARIBBEAN_EUR MED EAST",32,64,54.4,108.8,2]
["LATAM_EUR","SAMCC_MED","LACC_EURMEDWEST","CENTRAL AMERICA AND CARIBBEAN_EUR MED WEST",32,64,54.4,108.8,2]
["LATAM_EUR","SAMCC_MED","SAEC_EURMEDBS","SOUTH AMERICA EAST COAST_EUR MED BLACK SEA",32,64,54.4,108.8,2]
["LATAM_EUR","SAMCC_MED","SAEC_EURMEDEAST","SOUTH AMERICA EAST COAST_EUR MED EAST",32,64,54.4,108.8,2]
["LATAM_EUR","SAMCC_MED","SAEC_EURMEDWEST","SOUTH AMERICA EAST COAST_EUR MED WEST",32,64,54.4,108.8,2]
["LATAM_EUR","SAMCC_MED","SAWC_EURMEDBS","SOUTH AMERICA WEST COAST_EUR MED BLACK SEA",45,90,76.5,153,2]
["LATAM_EUR","SAMCC_MED","SAWC_EURMEDEAST","SOUTH AMERICA WEST COAST_EUR MED EAST",45,90,76.5,153,2]
["LATAM_EUR","SAMCC_MED","SAWC_EURMEDWEST","SOUTH AMERICA WEST COAST_EUR MED WEST",45,90,76.5,153,2]
["LATAM_EUR","SAMCC_NEU","LACC_EURNCP","CENTRAL AMERICA AND CARIBBEAN_EUR NORTH CONTINENT PORTS",32,64,54.4,108.8,2]
["LATAM_EUR","SAMCC_NEU","LACC_EURSCANBAL","CENTRAL AMERICA AND CARIBBEAN_EUR SCANDINAVIA & BALTICS",32,64,54.4,108.8,2]
["LATAM_EUR","SAMCC_NEU","LACC_EURUK","CENTRAL AMERICA AND CARIBBEAN_EUR UK IRELAND",32,64,54.4,108.8,2]
["LATAM_EUR","SAMCC_NEU","SAEC_EURNCP","SOUTH AMERICA EAST COAST_EUR NORTH CONTINENT PORTS",32,64,54.4,108.8,2]
["LATAM_EUR","SAMCC_NEU","SAEC_EURSCANBAL","SOUTH AMERICA EAST COAST_EUR SCANDINAVIA & BALTICS",32,64,54.4,108.8,2]
["LATAM_EUR","SAMCC_NEU","SAEC_EURUK","SOUTH AMERICA EAST COAST_EUR UK IRELAND",32,64,54.4,108.8,2]
["LATAM_EUR","SAMCC_NEU","SAWC_EURNCP","SOUTH AMERICA WEST COAST_EUR NORTH CONTINENT PORTS",45,90,76.5,153,2]
["LATAM_EUR","SAMCC_NEU","SAWC_EURSCANBAL","SOUTH AMERICA WEST COAST_EUR SCANDINAVIA & BALTICS",45,90,76.5,153,2]
["LATAM_EUR","SAMCC_NEU","SAWC_EURUK","SOUTH AMERICA WEST COAST_EUR UK IRELAND",45,90,76.5,153,2]
["NORAM_EUR","US_MED","USEC_EURMEDBS","USA EAST COAST_EUR MED BLACK SEA",28,56,47.6,95.2,2]
["NORAM_EUR","US_MED","USEC_EURMEDEAST","USA EAST COAST_EUR MED EAST",28,56,47.6,95.2,2]
["NORAM_EUR","US_MED","USEC_EURMEDWEST","USA EAST COAST_EUR MED WEST",28,56,47.6,95.2,2]
["NORAM_EUR","US_MED","USGC_EURMEDBS","USA GULF COAST_EUR MED BLACK SEA",28,{"$f":"E327*2","v":56},47.6,95.2,{"$f":"ROUNDUP(F327/45,0)","v":2}]
["NORAM_EUR","US_MED","USGC_EURMEDEAST","USA GULF COAST_EUR MED EAST",28,56,47.6,95.2,2]
["NORAM_EUR","US_MED","USGC_EURMEDWEST","USA GULF COAST_EUR MED WEST",28,56,47.6,95.2,2]
["NORAM_EUR","US_MED","USWC_EURMEDBS","USA WEST COAST_EUR MED BLACK SEA",28,56,47.6,95.2,2]
["NORAM_EUR","US_MED","USWC_EURMEDEAST","USA WEST COAST_EUR MED EAST",28,56,47.6,95.2,2]
["NORAM_EUR","US_MED","USWC_EURMEDWEST","USA WEST COAST_EUR MED WEST",28,56,47.6,95.2,2]
["NORAM_EUR","US_NEU","USEC_EURNCP","USA EAST COAST_EUR NORTH CONTINENT PORTS",23,46,39.1,78.2,2]
["NORAM_EUR","US_NEU","USEC_EURSCANBAL","USA EAST COAST_EUR SCANDINAVIA & BALTICS",23,46,39.1,78.2,2]
["NORAM_EUR","US_NEU","USEC_EURUK","USA EAST COAST_EUR UK IRELAND",23,46,39.1,78.2,2]
["NORAM_EUR","US_NEU","USGC_EURNCP","USA GULF COAST_EUR NORTH CONTINENT PORTS",23,46,39.1,78.2,2]
["NORAM_EUR","US_NEU","USGC_EURSCANBAL","USA GULF COAST_EUR SCANDINAVIA & BALTICS",23,46,39.1,78.2,2]
["NORAM_EUR","US_NEU","USGC_EURUK","USA GULF COAST_EUR UK IRELAND",23,46,39.1,78.2,2]
["NORAM_EUR","US_NEU","USWC_EURNCP","USA WEST COAST_EUR NORTH CONTINENT PORTS",23,46,39.1,78.2,2]
["NORAM_EUR","US_NEU","USWC_EURSCANBAL","USA WEST COAST_EUR SCANDINAVIA & BALTICS",23,46,39.1,78.2,2]
["NORAM_EUR","US_NEU","USWC_EURUK","USA WEST COAST_EUR UK IRELAND",23,46,{"$f":"E341*1.7","v":39.1},78.2,2]

{"sheet":"DATA","index":4,"n_rows":12,"n_cols":12,"rows_kept":12,"cut":false,"hidden":true,"merged":[]}
["Region","Sub-Region",null,null,null,null,null,null,null,null,"War-Risk"]
["All*","CA",null,null,null,"Country",{"$f":"#REF!","v":{"$error":"#REF!"}}]
["Africa","East Africa",null,null,null,"Port",{"$f":"#REF!","v":{"$error":"#REF!"}},null,null,null,"Country Code","Country Name"]
["APAC","Far East",null,null,null,"Country Code",{"$f":"_xlfn.XLOOKUP($G$2,Tabell13[Country Name],Tabell13[Country Code])","v":{"$error":"#REF!"}},null,null,null,"IQ","Iraq"]
["Central America","ISC",null,null,null,"Region",{"$f":"_xlfn.XLOOKUP($G$2,Tabell13[Country Name],Tabell13[Region])","v":{"$error":"#REF!"}},null,null,null,"KW","Kuwait"]
["Europe","MX",null,null,null,"Sub-region",{"$f":"_xlfn.XLOOKUP($G$2,Tabell13[Country Name],Tabell13[Sub-region])","v":{"$error":"#REF!"}},null,null,null,"OM","Oman"]
["Mediterranean","Oceania",null,null,null,null,null,null,null,null,"QA","Qatar"]
["Middle East","South Africa",null,null,null,null,null,null,null,null,"SA","Saudi Arabia"]
["North America","South America East Coast",null,null,null,null,null,null,null,null,"AE","United Arab Emirates"]
["South America","South America West Coast"]
[null,"US"]
[null,"West Africa"]

{"sheet":"GEO","index":5,"n_rows":126,"n_cols":17,"rows_kept":126,"cut":false,"hidden":true,"merged":[]}
[{"$f":"\"GEO!A3:A\"&COUNTA(A3:A145)+2","v":"GEO!A3:A92"},{"$f":"\"GEO!B3:B\"&COUNTA(B3:B145)+2","v":"GEO!B3:B92"},{"$f":"\"GEO!C3:C\"&COUNTA(C3:C145)+2","v":"GEO!C3:C92"},{"$f":"\"GEO!D3:D\"&COUNTA(D3:D145)+2","v":"GEO!D3:D67"},null,null,null,{"$f":"\"GEO!H3:H\"&COUNTA(H3:H89)+2","v":"GEO!H3:H89"}]
["Country Code","Country Name","Region","Sub-region",null,"If Found","Frequency","Searchable List",null,null,null,"Removed"]
["AR","Argentina","South America","South America East Coast",null,{"$f":"--ISNUMBER(FIND($F$1,B3))","v":1},{"$f":"IF(F3=1,COUNTIF($F$3:$F3,1),\"\")","v":1},{"$f":"IFERROR(INDEX($B$3:$B$215,MATCH(ROWS($G$3:$G3),$G$3:$G$214,0)),\"\")","v":"Argentina"},null,null,null,"AL","albania","Europe",null,null,{"$f":"_xlfn._xlws.FILTER(Tabell13[Sub-region],Tabell13[Country Code]=Tabell13[[#This Row],[Country Code]],\"\")","v":"South America East Coast"}]
["AU","Australia","APAC","Oceania",null,{"$f":"--ISNUMBER(FIND($F$1,B4))","v":1},{"$f":"IF(F4=1,COUNTIF($F$3:$F4,1),\"\")","v":2},{"$f":"IFERROR(INDEX($B$3:$B$215,MATCH(ROWS($G$3:$G4),$G$3:$G$214,0)),\"\")","v":"Australia"},null,null,null,"DZ","algeria","Mediterranean"]
["BH","Bahrain","Middle East",null,null,1,{"$f":"IF(F5=1,COUNTIF($F$3:$F5,1),\"\")","v":3},{"$f":"IFERROR(INDEX($B$3:$B$215,MATCH(ROWS($G$3:$G5),$G$3:$G$214,0)),\"\")","v":"Bahrain"},null,null,null,"AS","american samoa","-"]
["BD","Bangladesh","APAC","ISC",null,1,{"$f":"IF(F6=1,COUNTIF($F$3:$F6,1),\"\")","v":4},{"$f":"IFERROR(INDEX($B$3:$B$215,MATCH(ROWS($G$3:$G6),$G$3:$G$214,0)),\"\")","v":"Bangladesh"},null,null,null,"AO","angola","Africa","West Africa"]
["BZ","Belize","Central America",null,null,1,{"$f":"IF(F7=1,COUNTIF($F$3:$F7,1),\"\")","v":5},{"$f":"IFERROR(INDEX($B$3:$B$215,MATCH(ROWS($G$3:$G7),$G$3:$G$214,0)),\"\")","v":"Belize"},null,null,null,"AI","anguilla","-"]
["BJ","Benin","Africa","West Africa",null,1,{"$f":"IF(F8=1,COUNTIF($F$3:$F8,1),\"\")","v":6},{"$f":"IFERROR(INDEX($B$3:$B$215,MATCH(ROWS($G$3:$G8),$G$3:$G$214,0)),\"\")","v":"Benin"},null,null,null,"AG","antigua and barbuda","-"]
["BR","Brazil","South America","South America East Coast",null,1,{"$f":"IF(F9=1,COUNTIF($F$3:$F9,1),\"\")","v":7},{"$f":"IFERROR(INDEX($B$3:$B$215,MATCH(ROWS($G$3:$G9),$G$3:$G$214,0)),\"\")","v":"Brazil"},null,null,null,"AR","argentina","South America","South America East Coast"]
["BN","Brunei Darussalam","APAC","Far East",null,1,{"$f":"IF(F10=1,COUNTIF($F$3:$F10,1),\"\")","v":8},{"$f":"IFERROR(INDEX($B$3:$B$215,MATCH(ROWS($G$3:$G10),$G$3:$G$214,0)),\"\")","v":"Brunei Darussalam"},null,null,null,"AM","armenia","Europe"]
["KH","Cambodia","APAC","Far East",null,1,{"$f":"IF(F11=1,COUNTIF($F$3:$F11,1),\"\")","v":9},{"$f":"IFERROR(INDEX($B$3:$B$215,MATCH(ROWS($G$3:$G11),$G$3:$G$214,0)),\"\")","v":"Cambodia"},null,null,null,"AW","aruba","-"]
["CM","Cameroon","Africa","West Africa",null,1,{"$f":"IF(F12=1,COUNTIF($F$3:$F12,1),\"\")","v":10},{"$f":"IFERROR(INDEX($B$3:$B$215,MATCH(ROWS($G$3:$G12),$G$3:$G$214,0)),\"\")","v":"Cameroon"}]
["CA","Canada","North America","CA",null,1,{"$f":"IF(F13=1,COUNTIF($F$3:$F13,1),\"\")","v":11},{"$f":"IFERROR(INDEX($B$3:$B$215,MATCH(ROWS($G$3:$G13),$G$3:$G$214,0)),\"\")","v":"Canada"},null,null,null,"AT","austria","Europe"]
["CL","Chile","South America","South America West Coast",null,1,{"$f":"IF(F14=1,COUNTIF($F$3:$F14,1),\"\")","v":12},{"$f":"IFERROR(INDEX($B$3:$B$215,MATCH(ROWS($G$3:$G14),$G$3:$G$214,0)),\"\")","v":"Chile"},null,null,null,"AZ","azerbaijan","Europe"]
["CN","China","APAC","Far East",null,1,{"$f":"IF(F15=1,COUNTIF($F$3:$F15,1),\"\")","v":13},{"$f":"IFERROR(INDEX($B$3:$B$215,MATCH(ROWS($G$3:$G15),$G$3:$G$214,0)),\"\")","v":"China"},null,null,null,"BY","belarus","Europe"]
["CO","Colombia","South America","South America East Coast",null,1,{"$f":"IF(F16=1,COUNTIF($F$3:$F16,1),\"\")","v":14},{"$f":"IFERROR(INDEX($B$3:$B$215,MATCH(ROWS($G$3:$G16),$G$3:$G$214,0)),\"\")","v":"Colombia"},null,null,null,"BE","belgium","Europe"]
["KM","Comoros","Africa","East Africa",null,1,{"$f":"IF(F17=1,COUNTIF($F$3:$F17,1),\"\")","v":15},{"$f":"IFERROR(INDEX($B$3:$B$215,MATCH(ROWS($G$3:$G17),$G$3:$G$214,0)),\"\")","v":"Comoros"},null,null,null,"BA","bosnia and herzegovina","Europe"]
["CR","Costa Rica","Central America",null,null,1,{"$f":"IF(F18=1,COUNTIF($F$3:$F18,1),\"\")","v":16},{"$f":"IFERROR(INDEX($B$3:$B$215,MATCH(ROWS($G$3:$G18),$G$3:$G$214,0)),\"\")","v":"Costa Rica"},null,null,null,"BG","bulgaria","Europe"]
["CY","Cyprus","Mediterranean",null,null,1,{"$f":"IF(F19=1,COUNTIF($F$3:$F19,1),\"\")","v":17},{"$f":"IFERROR(INDEX($B$3:$B$215,MATCH(ROWS($G$3:$G19),$G$3:$G$214,0)),\"\")","v":"Cyprus"},null,null,null,"BI","burundi","Europe"]
["CD","Democratic Republic Of The Congo","Africa","West Africa",null,1,{"$f":"IF(F20=1,COUNTIF($F$3:$F20,1),\"\")","v":18},{"$f":"IFERROR(INDEX($B$3:$B$215,MATCH(ROWS($G$3:$G20),$G$3:$G$214,0)),\"\")","v":"Democratic Republic Of The Congo"},null,null,null,"HR","croatia","Europe"]
["DJ","Djibouti","Africa","East Africa",null,1,{"$f":"IF(F21=1,COUNTIF($F$3:$F21,1),\"\")","v":19},{"$f":"IFERROR(INDEX($B$3:$B$215,MATCH(ROWS($G$3:$G21),$G$3:$G$214,0)),\"\")","v":"Djibouti"},null,null,null,"CZ","czech republic","Europe"]
["TL","East Timor","APAC","Far East",null,1,{"$f":"IF(F22=1,COUNTIF($F$3:$F22,1),\"\")","v":20},{"$f":"IFERROR(INDEX($B$3:$B$215,MATCH(ROWS($G$3:$G22),$G$3:$G$214,0)),\"\")","v":"East Timor"},null,null,null,"DK","denmark","Europe","North Europe"]
["EC","Ecuador","South America","South America West Coast",null,1,{"$f":"IF(F23=1,COUNTIF($F$3:$F23,1),\"\")","v":21},{"$f":"IFERROR(INDEX($B$3:$B$215,MATCH(ROWS($G$3:$G23),$G$3:$G$214,0)),\"\")","v":"Ecuador"},null,null,null,"EE","estonia","Europe"]
["EG","Egypt","Mediterranean",null,null,1,{"$f":"IF(F24=1,COUNTIF($F$3:$F24,1),\"\")","v":22},{"$f":"IFERROR(INDEX($B$3:$B$215,MATCH(ROWS($G$3:$G24),$G$3:$G$214,0)),\"\")","v":"Egypt"},null,null,null,"FI","finland","Europe","North Europe"]
["SV","El Salvador","Central America",null,null,1,{"$f":"IF(F25=1,COUNTIF($F$3:$F25,1),\"\")","v":23},{"$f":"IFERROR(INDEX($B$3:$B$215,MATCH(ROWS($G$3:$G25),$G$3:$G$214,0)),\"\")","v":"El Salvador"},null,null,null,"FR","france","Europe"]
["GQ","Equatorial Guinea","Africa","West Africa",null,1,{"$f":"IF(F26=1,COUNTIF($F$3:$F26,1),\"\")","v":24},{"$f":"IFERROR(INDEX($B$3:$B$215,MATCH(ROWS($G$3:$G26),$G$3:$G$214,0)),\"\")","v":"Equatorial Guinea"},null,null,null,"GE","georgia","Europe"]
["ER","Eritrea","Africa","East Africa",null,1,{"$f":"IF(F27=1,COUNTIF($F$3:$F27,1),\"\")","v":25},{"$f":"IFERROR(INDEX($B$3:$B$215,MATCH(ROWS($G$3:$G27),$G$3:$G$214,0)),\"\")","v":"Eritrea"},null,null,null,"GI","gibraltar","Europe"]
["FJ","Fiji Islands","APAC","Far East",null,1,{"$f":"IF(F28=1,COUNTIF($F$3:$F28,1),\"\")","v":26},{"$f":"IFERROR(INDEX($B$3:$B$215,MATCH(ROWS($G$3:$G28),$G$3:$G$214,0)),\"\")","v":"Fiji Islands"},null,null,null,"HU","hungary","Europe"]
["GA","Gabon","Africa","West Africa",null,1,{"$f":"IF(F29=1,COUNTIF($F$3:$F29,1),\"\")","v":27},{"$f":"IFERROR(INDEX($B$3:$B$215,MATCH(ROWS($G$3:$G29),$G$3:$G$214,0)),\"\")","v":"Gabon"},null,null,null,"IR","iran","Europe"]
["GM","Gambia","Africa","West Africa",null,1,{"$f":"IF(F30=1,COUNTIF($F$3:$F30,1),\"\")","v":28},{"$f":"IFERROR(INDEX($B$3:$B$215,MATCH(ROWS($G$3:$G30),$G$3:$G$214,0)),\"\")","v":"Gambia"},null,null,null,"IE","ireland","Europe"]
["GH","Ghana","Africa","West Africa",null,1,{"$f":"IF(F31=1,COUNTIF($F$3:$F31,1),\"\")","v":29},{"$f":"IFERROR(INDEX($B$3:$B$215,MATCH(ROWS($G$3:$G31),$G$3:$G$214,0)),\"\")","v":"Ghana"},null,null,null,"LV","latvia","Europe"]
["GR","Greece","Mediterranean",null,null,1,{"$f":"IF(F32=1,COUNTIF($F$3:$F32,1),\"\")","v":30},{"$f":"IFERROR(INDEX($B$3:$B$215,MATCH(ROWS($G$3:$G32),$G$3:$G$214,0)),\"\")","v":"Greece"},null,null,null,"LT","lithuania","Europe"]
["GT","Guatemala","Central America",null,null,1,{"$f":"IF(F33=1,COUNTIF($F$3:$F33,1),\"\")","v":31},{"$f":"IFERROR(INDEX($B$3:$B$215,MATCH(ROWS($G$3:$G33),$G$3:$G$214,0)),\"\")","v":"Guatemala"},null,null,null,"LU","luxembourg","Europe"]
["GN","Guinea","Africa","West Africa",null,1,{"$f":"IF(F34=1,COUNTIF($F$3:$F34,1),\"\")","v":32},{"$f":"IFERROR(INDEX($B$3:$B$215,MATCH(ROWS($G$3:$G34),$G$3:$G$214,0)),\"\")","v":"Guinea"},null,null,null,"MK","macedonia","Europe"]
["GW","Guinea-Bissau","Africa","West Africa",null,1,{"$f":"IF(F35=1,COUNTIF($F$3:$F35,1),\"\")","v":33},{"$f":"IFERROR(INDEX($B$3:$B$215,MATCH(ROWS($G$3:$G35),$G$3:$G$214,0)),\"\")","v":"Guinea-Bissau"},null,null,null,"MT","malta","Europe"]
["GY","Guyana","Africa","West Africa",null,1,{"$f":"IF(F36=1,COUNTIF($F$3:$F36,1),\"\")","v":34},{"$f":"IFERROR(INDEX($B$3:$B$215,MATCH(ROWS($G$3:$G36),$G$3:$G$214,0)),\"\")","v":"Guyana"},null,null,null,"MD","moldova","Europe"]
["HK","Hong Kong","APAC","Far East",null,1,{"$f":"IF(F37=1,COUNTIF($F$3:$F37,1),\"\")","v":35},{"$f":"IFERROR(INDEX($B$3:$B$215,MATCH(ROWS($G$3:$G37),$G$3:$G$214,0)),\"\")","v":"Hong Kong"},null,null,null,"MC","monaco","Europe"]
["IN","India","APAC","ISC",null,1,{"$f":"IF(F38=1,COUNTIF($F$3:$F38,1),\"\")","v":36},{"$f":"IFERROR(INDEX($B$3:$B$215,MATCH(ROWS($G$3:$G38),$G$3:$G$214,0)),\"\")","v":"India"},null,null,null,"ME","montenegro","Europe"]
["ID","Indonesia","APAC","Far East",null,1,{"$f":"IF(F39=1,COUNTIF($F$3:$F39,1),\"\")","v":37},{"$f":"IFERROR(INDEX($B$3:$B$215,MATCH(ROWS($G$3:$G39),$G$3:$G$214,0)),\"\")","v":"Indonesia"},null,null,null,"NO","norway","Europe","North Europe"]
["IQ","Iraq","Middle East",null,null,1,{"$f":"IF(F40=1,COUNTIF($F$3:$F40,1),\"\")","v":38},{"$f":"IFERROR(INDEX($B$3:$B$215,MATCH(ROWS($G$3:$G40),$G$3:$G$214,0)),\"\")","v":"Iraq"},null,null,null,"RO","romania","Europe"]
["IL","Israel","Mediterranean",null,null,1,{"$f":"IF(F41=1,COUNTIF($F$3:$F41,1),\"\")","v":39},{"$f":"IFERROR(INDEX($B$3:$B$215,MATCH(ROWS($G$3:$G41),$G$3:$G$214,0)),\"\")","v":"Israel"},null,null,null,"RU","russian federation","Europe"]
["CI","Ivory Coast","Africa","West Africa",null,1,{"$f":"IF(F42=1,COUNTIF($F$3:$F42,1),\"\")","v":40},{"$f":"IFERROR(INDEX($B$3:$B$215,MATCH(ROWS($G$3:$G42),$G$3:$G$214,0)),\"\")","v":"Ivory Coast"},null,null,null,"RS","serbia","Europe"]
["JP","Japan","APAC","Far East",null,1,{"$f":"IF(F43=1,COUNTIF($F$3:$F43,1),\"\")","v":41},{"$f":"IFERROR(INDEX($B$3:$B$215,MATCH(ROWS($G$3:$G43),$G$3:$G$214,0)),\"\")","v":"Japan"},null,null,null,"SK","slovakia","Europe"]
["JO","Jordan","Middle East",null,null,1,{"$f":"IF(F44=1,COUNTIF($F$3:$F44,1),\"\")","v":42},{"$f":"IFERROR(INDEX($B$3:$B$215,MATCH(ROWS($G$3:$G44),$G$3:$G$214,0)),\"\")","v":"Jordan"},null,null,null,"SI","slovenia","Europe"]
["KE","Kenya","Africa","East Africa",null,1,{"$f":"IF(F45=1,COUNTIF($F$3:$F45,1),\"\")","v":43},{"$f":"IFERROR(INDEX($B$3:$B$215,MATCH(ROWS($G$3:$G45),$G$3:$G$214,0)),\"\")","v":"Kenya"},null,null,null,"SE","sweden","Europe","North Europe"]
["KR","Korea","APAC","Far East",null,1,{"$f":"IF(F46=1,COUNTIF($F$3:$F46,1),\"\")","v":44},{"$f":"IFERROR(INDEX($B$3:$B$215,MATCH(ROWS($G$3:$G46),$G$3:$G$214,0)),\"\")","v":"Korea"},null,null,null,"CH","switzerland","Europe"]
["KW","Kuwait","Middle East",null,null,1,{"$f":"IF(F47=1,COUNTIF($F$3:$F47,1),\"\")","v":45},{"$f":"IFERROR(INDEX($B$3:$B$215,MATCH(ROWS($G$3:$G47),$G$3:$G$214,0)),\"\")","v":"Kuwait"},null,null,null,"UA","ukraine","Europe"]
["LA","Laos","APAC","Far East",null,1,{"$f":"IF(F48=1,COUNTIF($F$3:$F48,1),\"\")","v":46},{"$f":"IFERROR(INDEX($B$3:$B$215,MATCH(ROWS($G$3:$G48),$G$3:$G$214,0)),\"\")","v":"Laos"},null,null,null,"BS","bahamas","-"]
["LB","Lebanon","Mediterranean",null,null,1,{"$f":"IF(F49=1,COUNTIF($F$3:$F49,1),\"\")","v":47},{"$f":"IFERROR(INDEX($B$3:$B$215,MATCH(ROWS($G$3:$G49),$G$3:$G$214,0)),\"\")","v":"Lebanon"},null,null,null,"BB","barbados","-"]
["LR","Liberia","Africa","West Africa",null,1,{"$f":"IF(F50=1,COUNTIF($F$3:$F50,1),\"\")","v":48},{"$f":"IFERROR(INDEX($B$3:$B$215,MATCH(ROWS($G$3:$G50),$G$3:$G$214,0)),\"\")","v":"Liberia"},null,null,null,"BM","bermuda","-"]
["LY","Libya","Mediterranean",null,null,1,{"$f":"IF(F51=1,COUNTIF($F$3:$F51,1),\"\")","v":49},{"$f":"IFERROR(INDEX($B$3:$B$215,MATCH(ROWS($G$3:$G51),$G$3:$G$214,0)),\"\")","v":"Libya"},null,null,null,"VG","british virgin islands","-"]
["MO","Macao","APAC","Far East",null,1,{"$f":"IF(F52=1,COUNTIF($F$3:$F52,1),\"\")","v":50},{"$f":"IFERROR(INDEX($B$3:$B$215,MATCH(ROWS($G$3:$G52),$G$3:$G$214,0)),\"\")","v":"Macao"},null,null,null,"CV","cape verde","-"]
["MG","Madagascar","Africa","East Africa",null,1,{"$f":"IF(F53=1,COUNTIF($F$3:$F53,1),\"\")","v":51},{"$f":"IFERROR(INDEX($B$3:$B$215,MATCH(ROWS($G$3:$G53),$G$3:$G$214,0)),\"\")","v":"Madagascar"},null,null,null,"KY","cayman islands","-"]
["MY","Malaysia","APAC","Far East",null,1,{"$f":"IF(F54=1,COUNTIF($F$3:$F54,1),\"\")","v":52},{"$f":"IFERROR(INDEX($B$3:$B$215,MATCH(ROWS($G$3:$G54),$G$3:$G$214,0)),\"\")","v":"Malaysia"},null,null,null,"CK","cook islands","-"]
["MX","Mexico","North America","MX",null,1,{"$f":"IF(F55=1,COUNTIF($F$3:$F55,1),\"\")","v":53},{"$f":"IFERROR(INDEX($B$3:$B$215,MATCH(ROWS($G$3:$G55),$G$3:$G$214,0)),\"\")","v":"Mexico"},null,null,null,"CU","cuba","-"]
["MA","Morocco","Mediterranean",null,null,1,{"$f":"IF(F56=1,COUNTIF($F$3:$F56,1),\"\")","v":54},{"$f":"IFERROR(INDEX($B$3:$B$215,MATCH(ROWS($G$3:$G56),$G$3:$G$214,0)),\"\")","v":"Morocco"},null,null,null,"DM","dominica","-"]
["MZ","Mozambique","Africa","East Africa",null,1,{"$f":"IF(F57=1,COUNTIF($F$3:$F57,1),\"\")","v":55},{"$f":"IFERROR(INDEX($B$3:$B$215,MATCH(ROWS($G$3:$G57),$G$3:$G$214,0)),\"\")","v":"Mozambique"},null,null,null,"DO","dominican republic","-"]
["MM","Myanmar","APAC","Far East",null,1,{"$f":"IF(F58=1,COUNTIF($F$3:$F58,1),\"\")","v":56},{"$f":"IFERROR(INDEX($B$3:$B$215,MATCH(ROWS($G$3:$G58),$G$3:$G$214,0)),\"\")","v":"Myanmar"},null,null,null,"FK","falkland islands","-"]
["NA","Namibia","Africa","West Africa",null,1,{"$f":"IF(F59=1,COUNTIF($F$3:$F59,1),\"\")","v":57},{"$f":"IFERROR(INDEX($B$3:$B$215,MATCH(ROWS($G$3:$G59),$G$3:$G$214,0)),\"\")","v":"Namibia"},null,null,null,"FO","faroe islands","-"]
["NZ","New Zealand","APAC","Oceania",null,1,{"$f":"IF(F60=1,COUNTIF($F$3:$F60,1),\"\")","v":58},{"$f":"IFERROR(INDEX($B$3:$B$215,MATCH(ROWS($G$3:$G60),$G$3:$G$214,0)),\"\")","v":"New Zealand"},null,null,null,"FM","federated states of micronesia","-"]
["NI","Nicaragua","Central America",null,null,1,{"$f":"IF(F61=1,COUNTIF($F$3:$F61,1),\"\")","v":59},{"$f":"IFERROR(INDEX($B$3:$B$215,MATCH(ROWS($G$3:$G61),$G$3:$G$214,0)),\"\")","v":"Nicaragua"},null,null,null,"GF","french guiana","-"]
["NG","Nigeria","Africa","West Africa",null,1,{"$f":"IF(F62=1,COUNTIF($F$3:$F62,1),\"\")","v":60},{"$f":"IFERROR(INDEX($B$3:$B$215,MATCH(ROWS($G$3:$G62),$G$3:$G$214,0)),\"\")","v":"Nigeria"},null,null,null,"PF","french polynesia","-"]
["OM","Oman","Middle East",null,null,1,{"$f":"IF(F63=1,COUNTIF($F$3:$F63,1),\"\")","v":61},{"$f":"IFERROR(INDEX($B$3:$B$215,MATCH(ROWS($G$3:$G63),$G$3:$G$214,0)),\"\")","v":"Oman"},null,null,null,"GL","greenland","-"]
["PK","Pakistan","APAC","ISC",null,1,{"$f":"IF(F64=1,COUNTIF($F$3:$F64,1),\"\")","v":62},{"$f":"IFERROR(INDEX($B$3:$B$215,MATCH(ROWS($G$3:$G64),$G$3:$G$214,0)),\"\")","v":"Pakistan"},null,null,null,"GD","grenada","-"]
["PA","Panama","Central America",null,null,1,{"$f":"IF(F65=1,COUNTIF($F$3:$F65,1),\"\")","v":63},{"$f":"IFERROR(INDEX($B$3:$B$215,MATCH(ROWS($G$3:$G65),$G$3:$G$214,0)),\"\")","v":"Panama"},null,null,null,"GP","guadeloupe","-"]
["PG","Papua New Guinea","APAC","Far East",null,1,{"$f":"IF(F66=1,COUNTIF($F$3:$F66,1),\"\")","v":64},{"$f":"IFERROR(INDEX($B$3:$B$215,MATCH(ROWS($G$3:$G66),$G$3:$G$214,0)),\"\")","v":"Papua New Guinea"},null,null,null,"GU","guam","-"]
["KP","People'S Republic Korea","APAC","Far East",null,1,{"$f":"IF(F67=1,COUNTIF($F$3:$F67,1),\"\")","v":65},{"$f":"IFERROR(INDEX($B$3:$B$215,MATCH(ROWS($G$3:$G67),$G$3:$G$214,0)),\"\")","v":"People'S Republic Korea"},null,null,null,"HT","haiti","-"]
["PE","Peru","South America","South America West Coast",null,{"$f":"--ISNUMBER(FIND($F$1,B68))","v":1},{"$f":"IF(F68=1,COUNTIF($F$3:$F68,1),\"\")","v":66},{"$f":"IFERROR(INDEX($B$3:$B$215,MATCH(ROWS($G$3:$G68),$G$3:$G$214,0)),\"\")","v":"Peru"},null,null,null,"HN","honduras","-"]
["PH","Philippines","APAC","Far East",null,1,{"$f":"IF(F69=1,COUNTIF($F$3:$F69,1),\"\")","v":67},{"$f":"IFERROR(INDEX($B$3:$B$215,MATCH(ROWS($G$3:$G69),$G$3:$G$214,0)),\"\")","v":"Philippines"},null,null,null,"JM","jamaica","-"]
["QA","Qatar","Middle East",null,null,1,{"$f":"IF(F70=1,COUNTIF($F$3:$F70,1),\"\")","v":68},{"$f":"IFERROR(INDEX($B$3:$B$215,MATCH(ROWS($G$3:$G70),$G$3:$G$214,0)),\"\")","v":"Qatar"},null,null,null,"KZ","kazakhstan","-"]
["CG","Republic Of The Congo","Africa","West Africa",null,1,{"$f":"IF(F71=1,COUNTIF($F$3:$F71,1),\"\")","v":69},{"$f":"IFERROR(INDEX($B$3:$B$215,MATCH(ROWS($G$3:$G71),$G$3:$G$214,0)),\"\")","v":"Republic Of The Congo"},null,null,null,"KI","kiribati","-"]
["SA","Saudi Arabia","Middle East",null,null,1,{"$f":"IF(F72=1,COUNTIF($F$3:$F72,1),\"\")","v":70},{"$f":"IFERROR(INDEX($B$3:$B$215,MATCH(ROWS($G$3:$G72),$G$3:$G$214,0)),\"\")","v":"Saudi Arabia"},null,null,null,"KG","kyrgyzstan","-"]
["SN","Senegal","Africa","West Africa",null,1,{"$f":"IF(F73=1,COUNTIF($F$3:$F73,1),\"\")","v":71},{"$f":"IFERROR(INDEX($B$3:$B$215,MATCH(ROWS($G$3:$G73),$G$3:$G$214,0)),\"\")","v":"Senegal"},null,null,null,"MV","maldives","-"]
["SL","Sierra Leone","Africa","West Africa",null,1,{"$f":"IF(F74=1,COUNTIF($F$3:$F74,1),\"\")","v":72},{"$f":"IFERROR(INDEX($B$3:$B$215,MATCH(ROWS($G$3:$G74),$G$3:$G$214,0)),\"\")","v":"Sierra Leone"},null,null,null,"MH","marshall islands","-"]
["SG","Singapore","APAC","Far East",null,1,{"$f":"IF(F75=1,COUNTIF($F$3:$F75,1),\"\")","v":73},{"$f":"IFERROR(INDEX($B$3:$B$215,MATCH(ROWS($G$3:$G75),$G$3:$G$214,0)),\"\")","v":"Singapore"},null,null,null,"MQ","martinique","-"]
["SO","Somalia","Africa","East Africa",null,1,{"$f":"IF(F76=1,COUNTIF($F$3:$F76,1),\"\")","v":74},{"$f":"IFERROR(INDEX($B$3:$B$215,MATCH(ROWS($G$3:$G76),$G$3:$G$214,0)),\"\")","v":"Somalia"},null,null,null,"MR","mauritania","-"]
["ZA","South Africa","Africa","South Africa",null,1,{"$f":"IF(F77=1,COUNTIF($F$3:$F77,1),\"\")","v":75},{"$f":"IFERROR(INDEX($B$3:$B$215,MATCH(ROWS($G$3:$G77),$G$3:$G$214,0)),\"\")","v":"South Africa"},null,null,null,"MU","mauritius","-"]
["LK","Sri Lanka","APAC","ISC",null,1,{"$f":"IF(F78=1,COUNTIF($F$3:$F78,1),\"\")","v":76},{"$f":"IFERROR(INDEX($B$3:$B$215,MATCH(ROWS($G$3:$G78),$G$3:$G$214,0)),\"\")","v":"Sri Lanka"},null,null,null,"YT","mayotte","-"]
["SR","Suriname","South America","South America East Coast",null,1,{"$f":"IF(F79=1,COUNTIF($F$3:$F79,1),\"\")","v":77},{"$f":"IFERROR(INDEX($B$3:$B$215,MATCH(ROWS($G$3:$G79),$G$3:$G$214,0)),\"\")","v":"Suriname"},null,null,null,"NR","nauru","-"]
["SY","Syria","Mediterranean",null,null,1,{"$f":"IF(F80=1,COUNTIF($F$3:$F80,1),\"\")","v":78},{"$f":"IFERROR(INDEX($B$3:$B$215,MATCH(ROWS($G$3:$G80),$G$3:$G$214,0)),\"\")","v":"Syria"},null,null,null,"NC","new caledonia","-"]
["TW","Taiwan","APAC","Far East",null,1,{"$f":"IF(F81=1,COUNTIF($F$3:$F81,1),\"\")","v":79},{"$f":"IFERROR(INDEX($B$3:$B$215,MATCH(ROWS($G$3:$G81),$G$3:$G$214,0)),\"\")","v":"Taiwan"},null,null,null,"NU","niue","-"]
["TZ","Tanzania","Africa","East Africa",null,1,{"$f":"IF(F82=1,COUNTIF($F$3:$F82,1),\"\")","v":80},{"$f":"IFERROR(INDEX($B$3:$B$215,MATCH(ROWS($G$3:$G82),$G$3:$G$214,0)),\"\")","v":"Tanzania"},null,null,null,"MP","northern mariana islands","-"]
["TH","Thailand","APAC","Far East",null,1,{"$f":"IF(F83=1,COUNTIF($F$3:$F83,1),\"\")","v":81},{"$f":"IFERROR(INDEX($B$3:$B$215,MATCH(ROWS($G$3:$G83),$G$3:$G$214,0)),\"\")","v":"Thailand"},null,null,null,"PW","palau","-"]
["TG","Togo","Africa","West Africa",null,1,{"$f":"IF(F84=1,COUNTIF($F$3:$F84,1),\"\")","v":82},{"$f":"IFERROR(INDEX($B$3:$B$215,MATCH(ROWS($G$3:$G84),$G$3:$G$214,0)),\"\")","v":"Togo"},null,null,null,"PR","puerto rico","-"]
["TN","Tunisia","Mediterranean",null,null,1,{"$f":"IF(F85=1,COUNTIF($F$3:$F85,1),\"\")","v":83},{"$f":"IFERROR(INDEX($B$3:$B$215,MATCH(ROWS($G$3:$G85),$G$3:$G$214,0)),\"\")","v":"Tunisia"},null,null,null,"RE","reunion","-"]
["TR","Turkey","Mediterranean",null,null,1,{"$f":"IF(F86=1,COUNTIF($F$3:$F86,1),\"\")","v":84},{"$f":"IFERROR(INDEX($B$3:$B$215,MATCH(ROWS($G$3:$G86),$G$3:$G$214,0)),\"\")","v":"Turkey"},null,null,null,"KN","saint kitts and nevis","-"]
["AE","United Arab Emirates","Middle East",null,null,1,{"$f":"IF(F87=1,COUNTIF($F$3:$F87,1),\"\")","v":85},{"$f":"IFERROR(INDEX($B$3:$B$215,MATCH(ROWS($G$3:$G87),$G$3:$G$214,0)),\"\")","v":"United Arab Emirates"},null,null,null,"LC","saint lucia","-"]
["US","United States Of America","North America","US",null,1,{"$f":"IF(F88=1,COUNTIF($F$3:$F88,1),\"\")","v":86},{"$f":"IFERROR(INDEX($B$3:$B$215,MATCH(ROWS($G$3:$G88),$G$3:$G$214,0)),\"\")","v":"United States Of America"},null,null,null,"PM","saint pierre and miquelon","-"]
["UY","Uruguay","South America","South America East Coast",null,1,{"$f":"IF(F89=1,COUNTIF($F$3:$F89,1),\"\")","v":87},{"$f":"IFERROR(INDEX($B$3:$B$215,MATCH(ROWS($G$3:$G89),$G$3:$G$214,0)),\"\")","v":"Uruguay"},null,null,null,"VC","saint vincent and the grenadines","-"]
["VE","Venezuela","South America","South America East Coast",null,null,null,null,null,null,null,"WS","samoa","-"]
["VN","Vietnam","APAC","Far East",null,null,null,null,null,null,null,"ST","sao tome and principe","-"]
["YE","Yemen","Middle East",null,null,null,null,null,null,null,null,"SC","seychelles","-"]
[null,null,null,null,null,null,null,null,null,null,null,"SB","solomon islands","-"]
[null,null,null,null,null,null,null,null,null,null,null,"SH","st. helena","-"]
[null,null,null,null,null,null,null,null,null,null,null,"SD","sudan","-"]
[null,null,null,null,null,null,null,null,null,null,null,"sj","svalbard and jan mayen island","-"]
[null,null,null,null,null,null,null,null,null,null,null,"TJ","tajikistan","-"]
[null,null,null,null,null,null,null,null,null,null,null,"TO","tonga","-"]
[null,null,null,null,null,null,null,null,null,null,null,"TT","trinidad and tobago","-"]
[null,null,null,null,null,null,null,null,null,null,null,"TM","turkmenistan","-"]
[null,null,null,null,null,null,null,null,null,null,null,"TC","turks and caicos islands","-"]
[null,null,null,null,null,null,null,null,null,null,null,"TV","tuvalu","-"]
[null,null,null,null,null,null,null,null,null,null,null,"VI","united states virgin islands","-"]
[null,null,null,null,null,null,null,null,null,null,null,"UZ","uzbekistan","-"]
[null,null,null,null,null,null,null,null,null,null,null,"VU","vanuatu","-"]
[]
[null,null,null,null,null,null,null,null,null,null,null,"BO","bolivia","South America","South America West Coast"]
[null,null,null,null,null,null,null,null,null,null,null,"BW","botswana","Africa","West Africa"]
[null,null,null,null,null,null,null,null,null,null,null,"BF","burkina faso","Africa","West Africa"]
[null,null,null,null,null,null,null,null,null,null,null,"ET","ethiopia","Africa","East Africa"]
[null,null,null,null,null,null,null,null,null,null,null,"DE","germany","Europe"]
[null,null,null,null,null,null,null,null,null,null,null,"IS","iceland","Europe"]
[null,null,null,null,null,null,null,null,null,null,null,"IT","italy","Europe"]
[null,null,null,null,null,null,null,null,null,null,null,"MW","malawi","Africa","East Africa"]
[null,null,null,null,null,null,null,null,null,null,null,"MN","mongolia","APAC","Far East"]
[null,null,null,null,null,null,null,null,null,null,null,"NP","nepal","APAC","Far East"]
[null,null,null,null,null,null,null,null,null,null,null,"NL","netherlands","Europe"]
[null,null,null,null,null,null,null,null,null,null,null,"PY","paraguay","South America","South America East Coast"]
[null,null,null,null,null,null,null,null,null,null,null,"PL","poland","Europe"]
[null,null,null,null,null,null,null,null,null,null,null,"PT","portugal","Europe"]
[null,null,null,null,null,null,null,null,null,null,null,"RW","rwanda","Africa","East Africa"]
[null,null,null,null,null,null,null,null,null,null,null,"ES","spain","Europe"]
[null,null,null,null,null,null,null,null,null,null,null,"UG","uganda","Africa","East Africa"]
[null,null,null,null,null,null,null,null,null,null,null,"GB","united kingdom","Europe"]
[null,null,null,null,null,null,null,null,null,null,null,"ZM","zambia","Africa","West Africa"]
[null,null,null,null,null,null,null,null,null,null,null,"ZW","zimbabwe","Africa","East Africa"]

{"sheet":"PORTS","index":6,"n_rows":606,"n_cols":25,"rows_kept":606,"cut":false,"hidden":true,"merged":[]}
["Country Code","Port Code","Port Name","Combined Port Name and Port Code",null,"Country Name","Country Code","Ports"]
["JP","JPABA","Abashiri, Hokkaido",{"$f":"_xlfn.CONCAT(C2&\" - \"&B2)","v":"Abashiri, Hokkaido - JPABA"},{"$f":"\"PORTS!D2:D\"&COUNTA(D:D)","v":"PORTS!D2:D606"},{"$f":"#REF!","v":{"$error":"#REF!"}},{"$f":"_xlfn.XLOOKUP(F2,GEO!B:B,GEO!A:A)","v":{"$error":"#REF!"}},{"$f":"IFERROR(_xlfn._xlws.FILTER(C2:C6716,A2:A6716=G2),\"\")","v":""},{"$f":"\"PORTS!H2:H\"&COUNTA(H:H)","v":"PORTS!H2:H2"}]
["CI","CIABJ","Abidjan","Abidjan - CIABJ"]
["JP","JPABO","Aboshi, Hyogo","Aboshi, Hyogo - JPABO"]
["AE","AEAUH","Abu Dhabi","Abu Dhabi - AEAUH"]
["JP","JPABU","Aburatsu, Miyazaki","Aburatsu, Miyazaki - JPABU"]
["SV","SVAQJ","Acajutla","Acajutla - SVAQJ"]
["MX","MXACA","Acapulco, Gro","Acapulco, Gro - MXACA"]
["GH","GHACC","Accra","Accra - GHACC"]
["AU","AUADL","Adelaide, Sa","Adelaide, Sa - AUADL",null,null,null,null,null,null,{"$f":"\"No port specific additionals to/from \"& PROPER(#REF!)&\" was found\"","v":{"$error":"#REF!"}}]
["YE","YEADE","Aden","Aden - YEADE"]
["MA","MAAGA","Agadir","Agadir - MAAGA",null,null,null,null,null,{"$f":"COUNT(I14:I27)","v":0}]
["JP","JPAIN","Ainoura, Nagasaki","Ainoura, Nagasaki - JPAIN",null,null,null,null,null,null,{"$f":"IF(J15=\"\",\"\",J15)","v":""}]
["JP","JPAIO","Aioi, Hyogo","Aioi, Hyogo - JPAIO",null,null,null,null,{"$f":"IF(K13=\"\",\"\",COUNTA($K$13:K13))","v":""},null,"Additionals","Region","Sub-region","Country","Port","LCL Currency","LCL Cost","LCL Calc Unit","FCL Currency","FCL Cost","FCL Calc Unit","Validity Calc","Validity Date","Validity Date"]
["JP","JPAXT","Akita, Akita","Akita, Akita - JPAXT",null,null,null,null,{"$f":"IF(J15=\"\",\"\",COUNTA($J$14:J15)+1)","v":""},{"$f":"IF(L15=\"\",\"\",\"Export\")","v":""},{"$f":"_xlfn.XLOOKUP(Y15,#REF!,#REF!,\"\")","v":{"$error":"#REF!"}},null,null,null,null,null,null,null,null,null,null,null,null,{"$f":"IFERROR(IF(W15=\"\",\"\",IF(W15<>0,W15,_xlfn.XLOOKUP(Y15,#REF!,#REF!))),\"\")","v":""},1]
["AU","AUALH","Albany, Wa","Albany, Wa - AUALH",null,null,null,null,{"$f":"IF(J16=\"\",\"\",COUNTA($J$14:J16)+1)","v":""},{"$f":"IF(L16=\"\",\"\",\"Export\")","v":""},{"$f":"_xlfn.XLOOKUP(Y16,#REF!,#REF!,\"\")","v":{"$error":"#REF!"}},null,null,null,null,null,null,null,null,null,null,null,null,{"$f":"IFERROR(IF(W16=\"\",\"\",IF(W16<>0,W16,_xlfn.XLOOKUP(Y16,#REF!,#REF!))),\"\")","v":""},2]
["EG","EGALY","Alexandria","Alexandria - EGALY",null,null,null,null,{"$f":"IF(J17=\"\",\"\",COUNTA($J$14:J17)+1)","v":""},{"$f":"IF(L17=\"\",\"\",\"Export\")","v":""},{"$f":"_xlfn.XLOOKUP(Y17,#REF!,#REF!,\"\")","v":{"$error":"#REF!"}},null,null,null,null,null,null,null,null,null,null,null,null,{"$f":"IFERROR(IF(W17=\"\",\"\",IF(W17<>0,W17,_xlfn.XLOOKUP(Y17,#REF!,#REF!))),\"\")","v":""},3]
["DZ","DZALG","Alger","Alger - DZALG",null,null,null,null,{"$f":"IF(J18=\"\",\"\",COUNTA($J$14:J18)+1)","v":""},{"$f":"IF(L18=\"\",\"\",\"Export\")","v":""},{"$f":"_xlfn.XLOOKUP(Y18,#REF!,#REF!,\"\")","v":{"$error":"#REF!"}},null,null,null,null,null,null,null,null,null,null,null,null,{"$f":"IFERROR(IF(W18=\"\",\"\",IF(W18<>0,W18,_xlfn.XLOOKUP(Y18,#REF!,#REF!))),\"\")","v":""},4]
["MX","MXATM","Altamira","Altamira - MXATM",null,null,null,null,{"$f":"IF(J19=\"\",\"\",COUNTA($J$14:J19)+1)","v":""},{"$f":"IF(L19=\"\",\"\",\"Export\")","v":""},{"$f":"_xlfn.XLOOKUP(Y19,#REF!,#REF!,\"\")","v":{"$error":"#REF!"}},null,null,null,null,null,null,null,null,null,null,null,null,{"$f":"IFERROR(IF(W19=\"\",\"\",IF(W19<>0,W19,_xlfn.XLOOKUP(Y19,#REF!,#REF!))),\"\")","v":""},5]
["JP","JPAMA","Amagasaki, Hyogo","Amagasaki, Hyogo - JPAMA"]
["TR","TRAMR","Ambarli","Ambarli - TRAMR"]
["US","USANC","Anchorage,  Ak","Anchorage,  Ak - USANC",null,null,null,null,{"$f":"IF(K21=\"\",\"\",COUNTA($K$13:K21))","v":""},{"$f":"IF(J23=\"\",\"\",J23)","v":""},"Additionals","Region","Sub-region","Country","Port","LCL Currency","LCL Cost","LCL Calc Unit","FCL Currency","FCL Cost","FCL Calc Unit","Validity Calc","Validity Date","Validity Date"]
["DZ","DZAAE","Annaba (Formerly Bon","Annaba (Formerly Bon - DZAAE",null,null,null,null,{"$f":"IF(J23=\"\",\"\",MAX($I$15:$I$19)+Y23)","v":""},{"$f":"IF(L23=\"\",\"\",\"Import\")","v":""},{"$f":"_xlfn.XLOOKUP(Y15,#REF!,#REF!,\"\")","v":{"$error":"#REF!"}},null,null,null,null,null,null,null,null,null,null,null,null,{"$f":"IFERROR(IF(W23=\"\",\"\",IF(W23<>0,W23,_xlfn.XLOOKUP(Y23,#REF!,#REF!))),\"\")","v":""},1]
["CN","CNAQG","Anqing","Anqing - CNAQG",null,null,null,null,{"$f":"IF(J24=\"\",\"\",MAX($I$15:$I$19)+Y24)","v":""},{"$f":"IF(L24=\"\",\"\",\"Import\")","v":""},{"$f":"_xlfn.XLOOKUP(Y16,#REF!,#REF!,\"\")","v":{"$error":"#REF!"}},null,null,null,null,null,null,null,null,null,null,null,null,{"$f":"IFERROR(IF(W24=\"\",\"\",IF(W24<>0,W24,_xlfn.XLOOKUP(Y24,#REF!,#REF!))),\"\")","v":""},2]
["TR","TRAYT","Antalya","Antalya - TRAYT",null,null,null,null,{"$f":"IF(J25=\"\",\"\",MAX($I$15:$I$19)+Y25)","v":""},{"$f":"IF(L25=\"\",\"\",\"Import\")","v":""},{"$f":"_xlfn.XLOOKUP(Y17,#REF!,#REF!,\"\")","v":{"$error":"#REF!"}},null,null,null,null,null,null,null,null,null,null,null,null,{"$f":"IFERROR(IF(W25=\"\",\"\",IF(W25<>0,W25,_xlfn.XLOOKUP(Y25,#REF!,#REF!))),\"\")","v":""},3]
["CL","CLANF","Antofagasta","Antofagasta - CLANF",null,null,null,null,{"$f":"IF(J26=\"\",\"\",MAX($I$15:$I$19)+Y26)","v":""},{"$f":"IF(L26=\"\",\"\",\"Import\")","v":""},{"$f":"_xlfn.XLOOKUP(Y18,#REF!,#REF!,\"\")","v":{"$error":"#REF!"}},null,null,null,null,null,null,null,null,null,null,null,null,{"$f":"IFERROR(IF(W26=\"\",\"\",IF(W26<>0,W26,_xlfn.XLOOKUP(Y26,#REF!,#REF!))),\"\")","v":""},4]
["NG","NGAPP","Apapa","Apapa - NGAPP",null,null,null,null,{"$f":"IF(J27=\"\",\"\",MAX($I$15:$I$19)+Y27)","v":""},{"$f":"IF(L27=\"\",\"\",\"Import\")","v":""},{"$f":"_xlfn.XLOOKUP(Y19,#REF!,#REF!,\"\")","v":{"$error":"#REF!"}},null,null,null,null,null,null,null,null,null,null,null,null,{"$f":"IFERROR(IF(W27=\"\",\"\",IF(W27<>0,W27,_xlfn.XLOOKUP(Y27,#REF!,#REF!))),\"\")","v":""},5]
["JO","JOAQJ","Aqaba (El Akaba)","Aqaba (El Akaba) - JOAQJ"]
["JO","JOAQB","Aqaba Free Zone","Aqaba Free Zone - JOAQB"]
["CL","CLARI","Arica","Arica - CLARI"]
["DZ","DZAZW","Arzew","Arzew - DZAZW"]
["IL","ILASH","Ashdod","Ashdod - ILASH"]
["ER","ERASA","Assab","Assab - ERASA"]
["JP","JPATM","Atsumi, Aichi","Atsumi, Aichi - JPATM"]
["NZ","NZAKL","Auckland","Auckland - NZAKL"]
["AR","ARBHI","Bahia Blanca","Bahia Blanca - ARBHI"]
["PA","PABLB","Balboa","Balboa - PABLB"]
["US","USBAL","Baltimore,  Md","Baltimore,  Md - USBAL"]
["BN","BNBWN","Bandar Seri Begawan","Bandar Seri Begawan - BNBWN"]
["IN","INBLR","Bangalore","Bangalore - INBLR"]
["TH","THBKK","Bangkok","Bangkok - THBKK"]
["ID","IDBDJ","Banjarmasin","Banjarmasin - IDBDJ"]
["GM","GMBJL","Banjul","Banjul - GMBJL"]
["CO","COBAQ","Barranquilla","Barranquilla - COBAQ"]
["GQ","GQBSG","Bata","Bata - GQBSG"]
["ID","IDBTH","Batam","Batam - IDBTH"]
["CN","CNBHY","Beihai","Beihai - CNBHY"]
["CN","CNBIJ","Beijiao","Beijiao - CNBIJ"]
["MZ","MZBEW","Beira","Beira - MZBEW"]
["LB","LBBEY","Beirut","Beirut - LBBEY"]
["DZ","DZBJA","Bejaia (Formerly Bou","Bejaia (Formerly Bou - DZBJA"]
["ID","IDBLW","Belawan, Sumatra","Belawan, Sumatra - IDBLW"]
["BR","BRBEL","Belem, Pa","Belem, Pa - BRBEL"]
["BZ","BZBZE","Belize City","Belize City - BZBZE"]
["AU","AUBEL","Bell Bay","Bell Bay - AUBEL"]
["LY","LYBEN","Benghazi","Benghazi - LYBEN"]
["SO","SOBBO","Berbera","Berbera - SOBBO"]
["MY","MYBTU","Bintulu, Sarawak","Bintulu, Sarawak - MYBTU"]
["GW","GWOXB","Bissau","Bissau - GWOXB"]
["TN","TNBIZ","Bizerte","Bizerte - TNBIZ"]
["CD","CDBOA","Boma","Boma - CDBOA"]
["US","USBOS","Boston,  Ma","Boston,  Ma - USBOS"]
["AU","AUBNE","Brisbane, Ql","Brisbane, Ql - AUBNE"]
["US","USSSI","Brunswick,  Ga","Brunswick,  Ga - USSSI"]
["CO","COBUN","Buenaventura","Buenaventura - COBUN"]
["AR","ARBUE","Buenos Aires",{"$f":"_xlfn.CONCAT(C66&\" - \"&B66)","v":"Buenos Aires - ARBUE"}]
["AU","AUBUR","Burnie, Ts","Burnie, Ts - AUBUR"]
["AO","AOCAB","Cabinda","Cabinda - AOCAB"]
["VN","VNTOT","Cai","Cai - VNTOT"]
["AU","AUCNS","Cairns, Ql","Cairns, Ql - AUCNS"]
["IN","INCCU","Calcutta","Calcutta - INCCU"]
["CL","CLCLD","Caldera","Caldera - CLCLD"]
["CR","CRCAL","Caldera","Caldera - CRCAL"]
["PE","PECLL","Callao","Callao - PECLL"]
["AU","AUCBR","Canberra","Canberra - AUCBR"]
["ZA","ZACPT","Capetown","Capetown - ZACPT"]
["VE","VECAR","Caripito","Caripito - VECAR"]
["CO","COCTG","Cartagena","Cartagena - COCTG"]
["MA","MACAS","Casablanca","Casablanca - MACAS"]
["PH","PHCEB","Cebu","Cebu - PHCEB"]
["US","USCLM","Chalmette,  La","Chalmette,  La - USCLM"]
["GT","GTCHR","Champerico","Champerico - GTCHR"]
["CN","CNCSX","Changsha","Changsha - CNCSX"]
["CN","CNCGU","Changshu","Changshu - CNCGU"]
["CN","CNCZX","Changzhou","Changzhou - CNCZX"]
["CN","CNCOZ","Chaozhou","Chaozhou - CNCOZ"]
["US","USCHS","Charleston,  Sc","Charleston,  Sc - USCHS"]
["BD","BDCGP","Chattogram","Chattogram - BDCGP"]
["CN","CNCTU","Chengdu","Chengdu - CNCTU"]
["IN","INMAA","Chennai","Chennai - INMAA"]
["JP","JPCHB","Chiba, Chiba","Chiba, Chiba - JPCHB"]
["CN","CNCWN","Chiwan","Chiwan - CNCWN"]
["CN","CNCKG","Chongqing","Chongqing - CNCKG"]
["NZ","NZCHC","Christchurch","Christchurch - NZCHC"]
["IN","INCOK","Cochin","Cochin - INCOK"]
["ZA","ZAZBA","Coega","Coega - ZAZBA"]
["LK","LKCMB","Colombo","Colombo - LKCMB"]
["PA","PAONX","Colon","Colon - PAONX"]
["AR","ARCRD","Comodoro Rivadavia","Comodoro Rivadavia - ARCRD"]
["GN","GNCKY","Conakry","Conakry - GNCKY"]
["NI","NICIO","Corinto","Corinto - NICIO"]
["BJ","BJCOO","Cotonou","Cotonou - BJCOO"]
["PA","PACTB","Cristobal","Cristobal - PACTB"]
["VE","VECMR","Cumarebo","Cumarebo - VECMR"]
["CN","CNDCB","Da Chan Bay","Da Chan Bay - CNDCB"]
["VN","VNDAD","Da Nang","Da Nang - VNDAD"]
["SN","SNDKR","Dakar","Dakar - SNDKR"]
["CN","CNDLC","Dalian","Dalian - CNDLC"]
["EG","EGDAM","Damietta","Damietta - EGDAM"]
["SA","SADMM","Dammam","Dammam - SADMM"]
["AU","AUDAM","Dampier, Wa","Dampier, Wa - AUDAM"]
["TZ","TZDAR","Dar Es Salaam","Dar Es Salaam - TZDAR"]
["AU","AUDRW","Darwin, Nt","Darwin, Nt - AUDRW"]
["PH","PHDVO","Davao, Mindanao","Davao, Mindanao - PHDVO"]
["IN","INDEL","Delhi","Delhi - INDEL"]
["IN","INICD","Delhi","Delhi - INICD"]
["DZ","DZDEL","Dellys","Dellys - DZDEL"]
["AU","AUDPO","Devonport, Ta","Devonport, Ta - AUDPO"]
["MG","MGDIE","Diego Suarez (Antsir","Diego Suarez (Antsir - MGDIE"]
["TL","TLDIL","Dili","Dili - TLDIL"]
["DJ","DJJIB","Djibouti","Djibouti - DJJIB"]
["DZ","DZDJI","Djidjelli","Djidjelli - DZDJI"]
["CN","CNDGG","Dongguan","Dongguan - CNDGG"]
["CM","CMDLA","Douala","Douala - CMDLA"]
["CN","CNDOU","Doumen","Doumen - CNDOU"]
["ZA","ZADUR","Durban","Durban - ZADUR"]
["ZA","ZAELS","East London","East London - ZAELS"]
["AU","AUQDN","Eden, Ns","Eden, Ns - AUQDN"]
["VE","VEEGU","El Guamache","El Guamache - VEEGU"]
["EC","ECESM","Esmeraldas",{"$f":"_xlfn.CONCAT(C130&\" - \"&B130)","v":"Esmeraldas - ECESM"}]
["JP","JPETA","Etajima, Hiroshima","Etajima, Hiroshima - JPETA"]
["CN","CNFAN","Fangcheng","Fangcheng - CNFAN"]
["CN","CNFOS","Foshan","Foshan - CNFOS"]
["SL","SLFNA","Freetown","Freetown - SLFNA"]
["AU","AUFRE","Fremantle, Wa","Fremantle, Wa - AUFRE"]
["JP","JPFKJ","Fukui, Fukui","Fukui, Fukui - JPFKJ"]
["JP","JPFUK","Fukuoka","Fukuoka - JPFUK"]
["JP","JPFKY","Fukuyama, Hiroshima","Fukuyama, Hiroshima - JPFKY"]
["CN","CNFUG","Fuqing","Fuqing - CNFUG"]
["CN","CNFUG","Fuqing","Fuqing - CNFUG"]
["JP","JPFSK","Fushiki, Toyama","Fushiki, Toyama - JPFSK"]
["CN","CNFOC","Fuzhou","Fuzhou - CNFOC"]
["TN","TNGAE","Gabes","Gabes - TNGAE"]
["US","USGLS","Galveston,  Tx","Galveston,  Tx - USGLS"]
["JP","JPGAM","Gamagori, Aichi","Gamagori, Aichi - JPGAM"]
["CN","CNGON","Gaolan","Gaolan - CNGON"]
["CN","CNGOM","Gaoming","Gaoming - CNGOM"]
["PA","PAGTN","Gatun","Gatun - PAGTN"]
["TR","TRGEB","Gebze","Gebze - TRGEB"]
["AU","AUGEX","Geelong, Vi","Geelong, Vi - AUGEX"]
["TR","TRGEM","Gemlik, Bursa","Gemlik, Bursa - TRGEM"]
["PH","PHGES","General Santos/Dadia","General Santos/Dadia - PHGES"]
["GY","GYGEO","Georgetown","Georgetown - GYGEO"]
["AU","AUGET","Geraldton, Wa","Geraldton, Wa - AUGET"]
["SA","SAGIZ","Gizan","Gizan - SAGIZ"]
["AU","AUGLT","Gladstone, Ql","Gladstone, Ql - AUGLT"]
["CN","CNCAN","Guangzhou","Guangzhou - CNCAN"]
["VE","VEGUT","Guanta/Puerto De La","Guanta/Puerto De La - VEGUT"]
["VE","VEGUB","Guaranao Bay","Guaranao Bay - VEGUB"]
["EC","ECGYE","Guayaquil","Guayaquil - ECGYE"]
["MX","MXGYM","Guaymas, Son","Guaymas, Son - MXGYM"]
["CN","CNGUG","Guigang","Guigang - CNGUG"]
["VE","VEGUI","Guiria","Guiria - VEGUI"]
["JP","JPHHE","Hachinohe, Aomori","Hachinohe, Aomori - JPHHE"]
["IL","ILHFA","Haifa","Haifa - ILHFA"]
["CN","CNHAK","Haikou","Haikou - CNHAK"]
["CN","CNHME","Haimen","Haimen - CNHME"]
["VN","VNHPH","Haiphong","Haiphong - VNHPH"]
["JP","JPHKT","Hakata, Fukuoka","Hakata, Fukuoka - JPHKT"]
["JP","JPHKD","Hakodate, Hokkaido","Hakodate, Hokkaido - JPHKD"]
["IN","INHAL","Haldia","Haldia - INHAL"]
["CA","CAHAL","Halifax, Ns","Halifax, Ns - CAHAL"]
["JP","JPHAN","Hannan (Kishiwada),","Hannan (Kishiwada), - JPHAN"]
["CN","CNHRB","Harbin","Harbin - CNHRB"]
["TR","TRHAY","Haydarpasa, Istanbul","Haydarpasa, Istanbul - TRHAY"]
["CN","CNHSN","Heshan","Heshan - CNHSN"]
["JP","JPHIB","Hibi, Okayama","Hibi, Okayama - JPHIB"]
["JP","JPHBK","Hibikinada, Fukuoka","Hibikinada, Fukuoka - JPHBK"]
["JP","JPHHR","Higashiharima, Hyogo","Higashiharima, Hyogo - JPHHR"]
["JP","JPHKR","Hikari, Yamaguchi","Hikari, Yamaguchi - JPHKR"]
["JP","JPHIK","Hiki, Wakayama","Hiki, Wakayama - JPHIK"]
["JP","JPHIM","Himeji, Hyogo","Himeji, Hyogo - JPHIM"]
["JP","JPHRA","Hirao, Yamaguchi","Hirao, Yamaguchi - JPHRA"]
["JP","JPHRR","Hirara, Okinawa","Hirara, Okinawa - JPHRR"]
["JP","JPHRH","Hirohata, Hyogo","Hirohata, Hyogo - JPHRH"]
["JP","JPHIJ","Hiroshima, Hiroshima","Hiroshima, Hiroshima - JPHIJ"]
["JP","JPHTC","Hitachi, Ibaragi","Hitachi, Ibaragi - JPHTC"]
["VN","VNSGN","Ho Chi Minh City","Ho Chi Minh City - VNSGN"]
["AU","AUHBA","Hobart, Ts","Hobart, Ts - AUHBA"]
["HK","HKHKG","Hong Kong","Hong Kong - HKHKG"]
["US","USHNL","Honolulu,  Ha","Honolulu,  Ha - USHNL"]
["JP","JPHSM","Hosojima, Miyazaki","Hosojima, Miyazaki - JPHSM"]
["US","USHOU","Houston,  Tx","Houston,  Tx - USHOU"]
["CN","CNHDU","Huadu",{"$f":"_xlfn.CONCAT(C194&\" - \"&B194)","v":"Huadu - CNHDU"}]
["CN","CNHDG","Huadu Pt","Huadu Pt - CNHDG"]
["CN","CNHUA","Huangpu","Huangpu - CNHUA"]
["CN","CNHUI","Huizhou","Huizhou - CNHUI"]
["JP","JPIMB","Imabari, Ehime","Imabari, Ehime - JPIMB"]
["JP","JPIMI","Imari, Saga","Imari, Saga - JPIMI"]
["KR","KRINC","Incheun","Incheun - KRINC"]
["JP","JPINS","Innoshima, Hiroshima","Innoshima, Hiroshima - JPINS"]
["CL","CLIQQ","Iquique","Iquique - CLIQQ"]
["JP","JPISG","Ishigaki, Okinawa","Ishigaki, Okinawa - JPISG"]
["JP","JPISI","Ishikari, Hokkaido","Ishikari, Hokkaido - JPISI"]
["JP","JPISS","Ishikariwan","Ishikariwan - JPISS"]
["JP","JPISM","Ishinomaki, Miyagi","Ishinomaki, Miyagi - JPISM"]
["TR","TRISK","Iskenderun, Hatay","Iskenderun, Hatay - TRISK"]
["TR","TRIST","Istanbul","Istanbul - TRIST"]
["BR","BRITJ","Itajai, Sc","Itajai, Sc - BRITJ"]
["BR","BRIOA","Itapoa","Itapoa - BRIOA"]
["JP","JPITO","Itozaki, Hiroshima","Itozaki, Hiroshima - JPITO"]
["JP","JPIWK","Iwakuni, Yamaguchi","Iwakuni, Yamaguchi - JPIWK"]
["JP","JPIYM","Iyomishima, Ehime","Iyomishima, Ehime - JPIYM"]
["TR","TRIZM","Izmir (Smyrna)","Izmir (Smyrna) - TRIZM"]
["TR","TRIZT","Izmit, Kocaeli","Izmit, Kocaeli - TRIZT"]
["US","USJAX","Jacksonville,  Fl","Jacksonville,  Fl - USJAX"]
["ID","IDJKT","Jakarta","Jakarta - IDJKT"]
["AE","AEJEA","Jebel Ali","Jebel Ali - AEJEA"]
["SA","SAJED","Jeddah","Jeddah - SAJED"]
["CN","CNJMN","Jiangmen","Jiangmen - CNJMN"]
["CN","CNJIA","Jiangsu","Jiangsu - CNJIA"]
["CN","CNJXN","Jiao Xin","Jiao Xin - CNJXN"]
["CN","CNJIU","Jiujiang","Jiujiang - CNJIU"]
["SA","SAJUB","Jubail","Jubail - SAJUB"]
["JP","JPKOJ","Kagoshima, Kagoshima","Kagoshima, Kagoshima - JPKOJ"]
["JP","JPKAI","Kainan, Wakayama","Kainan, Wakayama - JPKAI"]
["GR","GRKLX","Kalamata","Kalamata - GRKLX"]
["JP","JPKIS","Kamaishi, Iwate","Kamaishi, Iwate - JPKIS"]
["JP","JPKNZ","Kanazawa, Ishikawa","Kanazawa, Ishikawa - JPKNZ"]
["JP","JPKND","Kanda, Fukuoka","Kanda, Fukuoka - JPKND"]
["TW","TWKHH","Kaohsiung (Takao)","Kaohsiung (Takao) - TWKHH"]
["PK","PKKHI","Karachi","Karachi - PKKHI"]
["JP","JPKAR","Karatsu, Saga","Karatsu, Saga - JPKAR"]
["JP","JPKSA","Kasaoka, Okayama","Kasaoka, Okayama - JPKSA"]
["JP","JPKSM","Kashima, Ibaragi","Kashima, Ibaragi - JPKSM"]
["JP","JPKWZ","Kashiwazaki, Niigata","Kashiwazaki, Niigata - JPKWZ"]
["JP","JPKWS","Kawasaki, Kanagawa","Kawasaki, Kanagawa - JPKWS"]
["TW","TWKEL","Keelung (Chilung)","Keelung (Chilung) - TWKEL"]
["JP","JPKSN","Kesennuma, Miyagi","Kesennuma, Miyagi - JPKSN"]
["JP","JPKII","Kiire, Kagoshima","Kiire, Kagoshima - JPKII"]
["JP","JPKIK","Kikuma, Ehime","Kikuma, Ehime - JPKIK"]
["AU","AUKGC","Kingscote, Sa","Kingscote, Sa - AUKGC"]
["CD","CDFIH","Kinshasa","Kinshasa - CDFIH"]
["JP","JPKNU","Kinuura, Aichi","Kinuura, Aichi - JPKNU"]
["JP","JPKIN","Kinwan, Okinawa","Kinwan, Okinawa - JPKIN"]
["JP","JPKZU","Kisarazu, Chiba","Kisarazu, Chiba - JPKZU"]
["SO","SOKMU","Kismayu","Kismayu - SOKMU"]
["JP","JPKKJ","Kita Kyushu, Fukuoka","Kita Kyushu, Fukuoka - JPKKJ"]
["AU","AUKLP","Klein Point","Klein Point - AUKLP"]
["JP","JPUKB","Kobe, Hyogo","Kobe, Hyogo - JPUKB"]
["JP","JPKCZ","Kochi, Kochi","Kochi, Kochi - JPKCZ"]
["JP","JPKOM","Komatsujima, Tokushi","Komatsujima, Tokushi - JPKOM"]
["KH","KHKOS","Kompongsom","Kompongsom - KHKOS"]
["MY","MYBKI","Kota Kinabalu, Sabah","Kota Kinabalu, Sabah - MYBKI"]
["CM","CMKBI","Kribi","Kribi - CMKBI"]
["IN","INKRI","Krishnapatam","Krishnapatam - INKRI"]
["BN","BNKUB","Kuala Belait","Kuala Belait - BNKUB"]
["MY","MYKUA","Kuantan (Tanjong Gel",{"$f":"_xlfn.CONCAT(C258&\" - \"&B258)","v":"Kuantan (Tanjong Gel - MYKUA"}]
["MY","MYKCH","Kuching, Sarawak","Kuching, Sarawak - MYKCH"]
["JP","JPKUD","Kudamatsu, Yamaguchi","Kudamatsu, Yamaguchi - JPKUD"]
["JP","JPKMJ","Kumamoto, Kumamoto","Kumamoto, Kumamoto - JPKMJ"]
["CN","CNKMG","Kunming","Kunming - CNKMG"]
["KR","KRKUV","Kunsan","Kunsan - KRKUV"]
["JP","JPKRE","Kure, Hiroshima","Kure, Hiroshima - JPKRE"]
["JP","JPKUH","Kushiro, Hokkaido","Kushiro, Hokkaido - JPKUH"]
["KW","KWKWI","Kuwait","Kuwait - KWKWI"]
["KR","KRKAN","Kwangyang","Kwangyang - KRKAN"]
["KR","KRKWA","Kwangyang","Kwangyang - KRKWA"]
["AU","AUKWI","Kwinana, Wa","Kwinana, Wa - AUKWI"]
["VE","VELAG","La Guaira","La Guaira - VELAG"]
["EC","ECLLD","La Libertad","La Libertad - ECLLD"]
["SV","SVLLD","La Libertad","La Libertad - SVLLD"]
["AR","ARLPG","La Plata","La Plata - ARLPG"]
["PG","PGLAE","Lae, Morobe","Lae, Morobe - PGLAE"]
["TH","THLCH","Laem Chabang","Laem Chabang - THLCH"]
["NG","NGLOS","Lagos","Lagos - NGLOS"]
["CN","CNLAN","Lanshi","Lanshi - CNLAN"]
["CN","CNLSI","Lanshi","Lanshi - CNLSI"]
["SY","SYLTK","Lattakia","Lattakia - SYLTK"]
["AU","AULST","Launceston, Ts","Launceston, Ts - AULST"]
["FJ","FJLTK","Lautoka","Lautoka - FJLTK"]
["CN","CNLUU","Leliu","Leliu - CNLUU"]
["CN","CNLIH","Lianhuashan","Lianhuashan - CNLIH"]
["CN","CNLYG","Lianyungang","Lianyungang - CNLYG"]
["GA","GALBV","Libreville","Libreville - GALBV"]
["CY","CYLMS","Limassol","Limassol - CYLMS"]
["AO","AOLOB","Lobito","Lobito - AOLOB"]
["TG","TGLFW","Lome","Lome - TGLFW"]
["US","USLGB","Long Beach,  Ca","Long Beach,  Ca - USLGB"]
["CN","CNLKU","Longkou","Longkou - CNLKU"]
["US","USLAX","Los Angeles,  Ca","Los Angeles,  Ca - USLAX"]
["AO","AOLAD","Luanda","Luanda - AOLAD"]
["NZ","NZLYT","Lyttelton","Lyttelton - NZLYT"]
["CN","CNMAA","Maanshan","Maanshan - CNMAA"]
["MO","MOMFM","Macau","Macau - MOMFM"]
["PG","PGMAG","Madang","Madang - PGMAG"]
["JP","JPMAI","Maizuru, Kyoto","Maizuru, Kyoto - JPMAI"]
["MG","MGMJN","Majunga (Mahajanga)","Majunga (Mahajanga) - MGMJN"]
["GQ","GQSSG","Malabo","Malabo - GQSSG"]
["IN","INIXE","Mangalore (New Manga","Mangalore (New Manga - INIXE"]
["PH","PHMNL","Manila","Manila - PHMNL"]
["PH","PHMNS","Manila","Manila - PHMNS"]
["EC","ECMEC","Manta","Manta - ECMEC"]
["PA","PAMIT","Manzanillo","Manzanillo - PAMIT"]
["MX","MXZLO","Manzanillo, Col","Manzanillo, Col - MXZLO"]
["MZ","MZMPM","Maputo","Maputo - MZMPM"]
["AR","ARMDQ","Mar Del Plata","Mar Del Plata - ARMDQ"]
["VE","VEMAR","Maracaibo","Maracaibo - VEMAR"]
["JP","JPMAR","Marugame, Kagawa","Marugame, Kagawa - JPMAR"]
["ER","ERMSW","Massawa","Massawa - ERMSW"]
["CD","CDMAT","Matadi","Matadi - CDMAT"]
["JP","JPMAG","Mategata, Ehime","Mategata, Ehime - JPMAG"]
["JP","JPMNG","Matsunaga, Hiroshima","Matsunaga, Hiroshima - JPMNG"]
["JP","JPMAT","Matsushima, Nagasaki","Matsushima, Nagasaki - JPMAT"]
["JP","JPMYJ","Matsuyama, Ehime","Matsuyama, Ehime - JPMYJ"]
["MX","MXMZT","Mazatlan, Sin","Mazatlan, Sin - MXMZT"]
["AU","AUMEL","Melbourne, Vi","Melbourne, Vi - AUMEL"]
["TR","TRMER","Mersin, Icel","Mersin, Icel - TRMER"]
["US","USMIA","Miami,  Fl","Miami,  Fl - USMIA"]
["JP","JPMIN","Minamata, Kumamoto","Minamata, Kumamoto - JPMIN"]
["JP","JPMIS","Misumi, Kumomoto","Misumi, Kumomoto - JPMIS"]
["JP","JPMJR","Mitajiri, Yamaguchi",{"$f":"_xlfn.CONCAT(C322&\" - \"&B322)","v":"Mitajiri, Yamaguchi - JPMJR"}]
["JP","JPMKS","Mitsukoshima, Hirosh","Mitsukoshima, Hirosh - JPMKS"]
["JP","JPMYK","Miyako, Iwate","Miyako, Iwate - JPMYK"]
["JP","JPMIZ","Mizushima, Okayama","Mizushima, Okayama - JPMIZ"]
["US","USMOB","Mobile,  Al","Mobile,  Al - USMOB"]
["SO","SOMGQ","Mogadishu","Mogadishu - SOMGQ"]
["JP","JPMOJ","Moji, Fukuoka","Moji, Fukuoka - JPMOJ"]
["KE","KEMBA","Mombasa","Mombasa - KEMBA"]
["JP","JPMBE","Monbetsu, Hokkaido","Monbetsu, Hokkaido - JPMBE"]
["LR","LRMLW","Monrovia","Monrovia - LRMLW"]
["UY","UYMVD","Montevideo","Montevideo - UYMVD"]
["CA","CAMTR","Montreal,","Montreal, - CAMTR"]
["KM","KMYVA","Moroni","Moroni - KMYVA"]
["DZ","DZMOS","Mostaganem","Mostaganem - DZMOS"]
["BN","BNMUA","Muara","Muara - BNMUA"]
["IN","INBOM","Mumbai","Mumbai - INBOM"]
["IN","INMUN","Mundra","Mundra - INMUN"]
["JP","JPMUR","Muroran, Hokkaido","Muroran, Hokkaido - JPMUR"]
["OM","OMMCT","Muscat","Muscat - OMMCT"]
["KM","KMMUT","Mutsamudu","Mutsamudu - KMMUT"]
["MZ","MZMNC","Nacala","Nacala - MZMNC"]
["JP","JPNGS","Nagasaki, Nagasaki","Nagasaki, Nagasaki - JPNGS"]
["JP","JPNGO","Nagoya, Aichi","Nagoya, Aichi - JPNGO"]
["JP","JPNAH","Naha, Okinawa","Naha, Okinawa - JPNAH"]
["JP","JPNAN","Nakanoseki","Nakanoseki - JPNAN"]
["AO","AOMSZ","Namibe","Namibe - AOMSZ"]
["KP","KPNAM","Nampo","Nampo - KPNAM"]
["JP","JPNNO","Nanao, Ishikawa","Nanao, Ishikawa - JPNNO"]
["CN","CNKHN","Nanchang","Nanchang - CNKHN"]
["CN","CNNAH","Nanhai","Nanhai - CNNAH"]
["CN","CNNKG","Nanjing","Nanjing - CNNKG"]
["JP","JPNKO","Nanko","Nanko - JPNKO"]
["CN","CNNSA","Nansha","Nansha - CNNSA"]
["CN","CNNTG","Nantong","Nantong - CNNTG"]
["JP","JPNAO","Naoetsu, Niigata","Naoetsu, Niigata - JPNAO"]
["BR","BRNVT","Navegantes","Navegantes - BRNVT"]
["JP","JPNAZ","Naze, Kagoshima","Naze, Kagoshima - JPNAZ"]
["AR","ARNEC","Necochea","Necochea - ARNEC"]
["IN","INNML","New Mangalore (Manga","New Mangalore (Manga - INNML"]
["US","USMSY","New Orleans","New Orleans - USMSY"]
["US","USNYC","New York,  Ny","New York,  Ny - USNYC"]
["US","USEWR","Newark,  Nj","Newark,  Nj - USEWR"]
["AU","AUNTL","Newcastle, Ns","Newcastle, Ns - AUNTL"]
["IN","INNSA","Nhava Sheva","Nhava Sheva - INNSA"]
["JP","JPKIJ","Niigata, Niigata","Niigata, Niigata - JPKIJ"]
["JP","JPIHA","Niihama, Ehime","Niihama, Ehime - JPIHA"]
["CN","CNNGB","Ningbo","Ningbo - CNNGB"]
["US","USORF","Norfolk,  Va","Norfolk,  Va - USORF"]
["JP","JPNSR","Noshiro, Akite","Noshiro, Akite - JPNSR"]
["MG","MGNOS","Nosy","Nosy - MGNOS"]
["JP","JPNUM","Numazu, Shizuoka","Numazu, Shizuoka - JPNUM"]
["US","USOAK","Oakland,  Ca","Oakland,  Ca - USOAK"]
["JP","JPOIT","Oita, Oita","Oita, Oita - JPOIT"]
["JP","JPOMZ","Omaezaki, Shizuoka","Omaezaki, Shizuoka - JPOMZ"]
["JP","JPOMS","Omishima, Ehime","Omishima, Ehime - JPOMS"]
["JP","JPONA","Onahama, Fukushima","Onahama, Fukushima - JPONA"]
["NG","NGONN","Onne","Onne - NGONN"]
["JP","JPOND","Onoda, Yamaguchi","Onoda, Yamaguchi - JPOND"]
["JP","JPONO","Onomichi, Hiroshima","Onomichi, Hiroshima - JPONO"]
["DZ","DZORN","Oran","Oran - DZORN"]
["JP","JPOSA","Osaka","Osaka - JPOSA"]
["JP","JPOTK","Otake, Hiroshima","Otake, Hiroshima - JPOTK"]
["JP","JPOTR","Otaru, Hokkaido","Otaru, Hokkaido - JPOTR"]
["JP","JPOWA","Owase, Mie","Owase, Mie - JPOWA"]
["ID","IDPDG","Padang",{"$f":"_xlfn.CONCAT(C386&\" - \"&B386)","v":"Padang - IDPDG"}]
["PE","PEPAI","Paita","Paita - PEPAI"]
["US","USPAB","Palm Beach,  Fl","Palm Beach,  Fl - USPAB"]
["PA","PAPTY","Panama City","Panama City - PAPTY"]
["ID","IDPNJ","Panjang","Panjang - IDPNJ"]
["CN","CNPYU","Panyu","Panyu - CNPYU"]
["SR","SRPBM","Paramaribo","Paramaribo - SRPBM"]
["BR","BRPNG","Paranagua, Pr","Paranagua, Pr - BRPNG"]
["MY","MYPGU","Pasir Gudang, Johor","Pasir Gudang, Johor - MYPGU"]
["MY","MYPEN","Penang","Penang - MYPEN"]
["MY","MYPEN","Penang (Georgetown)","Penang (Georgetown) - MYPEN"]
["AU","AUPER","Perth, Wa","Perth, Wa - AUPER"]
["US","USPHL","Philadelphia,  Pa","Philadelphia,  Pa - USPHL"]
["KH","KHPNH","Phnompenh","Phnompenh - KHPNH"]
["IN","INPAV","Pipavav (Victor)Port","Pipavav (Victor)Port - INPAV"]
["GR","GRPIR","Piraeus","Piraeus - GRPIR"]
["CG","CGPNR","Pointe Noire","Pointe Noire - CGPNR"]
["AU","AUPAU","Port Arthur, Ts","Port Arthur, Ts - AUPAU"]
["ZA","ZAPLZ","Port Elizabeth","Port Elizabeth - ZAPLZ"]
["US","USPEF","Port Everglades,  Fl","Port Everglades,  Fl - USPEF"]
["GA","GAPOG","Port Gentil","Port Gentil - GAPOG"]
["AU","AUPGI","Port Gills","Port Gills - AUPGI"]
["AU","AUPHE","Port Hedland, Wa","Port Hedland, Wa - AUPHE"]
["MY","MYPKG","Port Kelang","Port Kelang - MYPKG"]
["AU","AUPKL","Port Kembla, Ns","Port Kembla, Ns - AUPKL"]
["AU","AUPLO","Port Lincoln, Sa","Port Lincoln, Sa - AUPLO"]
["PG","PGPOM","Port Moresby","Port Moresby - PGPOM"]
["AU","AUPPI","Port Pirie, Sa","Port Pirie, Sa - AUPPI"]
["OM","OMOPQ","Port Qaboos","Port Qaboos - OMOPQ"]
["PK","PKBQM","Port Quasim","Port Quasim - PKBQM"]
["US","USPDX","Portland,  Or","Portland,  Or - USPDX"]
["BR","BRPOA","Porto Alegre, Rs","Porto Alegre, Rs - BRPOA"]
["US","USPTM","Portsmouth,  Va","Portsmouth,  Va - USPTM"]
["PA","PAPAM","Puerto Almirante","Puerto Almirante - PAPAM"]
["GT","GTPBR","Puerto Barrios","Puerto Barrios - GTPBR"]
["EC","ECPBO","Puerto Bolivar","Puerto Bolivar - ECPBO"]
["VE","VEPBL","Puerto Cabello","Puerto Cabello - VEPBL"]
["AR","ARPUD","Puerto Deseado","Puerto Deseado - ARPUD"]
["CR","CRLIO","Puerto Limon","Puerto Limon - CRLIO"]
["MX","MXPMD","Puerto Madero, Chi","Puerto Madero, Chi - MXPMD"]
["CR","CRPMN","Puerto Moin","Puerto Moin - CRPMN"]
["VE","VEPZO","Puerto Ordaz","Puerto Ordaz - VEPZO"]
["GT","GTPRQ","Puerto Quetzal","Puerto Quetzal - GTPRQ"]
["MX","MXPVR","Puerto Vallarta, Gro","Puerto Vallarta, Gro - MXPVR"]
["CL","CLPAG","Puetro Angamos","Puetro Angamos - CLPAG"]
["CL","CLPUQ","Punta Arenas","Punta Arenas - CLPUQ"]
["CR","CRPAS","Puntarenas","Puntarenas - CRPAS"]
["VE","VEPFI","Punto Fijo","Punto Fijo - VEPFI"]
["KR","KRPUS","Pusan","Pusan - KRPUS"]
["CN","CNTAO","Qingdao","Qingdao - CNTAO"]
["CN","CNQYN","Qingyuan","Qingyuan - CNQYN"]
["CN","CNSHP","Qinhuangdao","Qinhuangdao - CNSHP"]
["CN","CNQZJ","Quanzhou","Quanzhou - CNQZJ"]
["MZ","MZUEL","Quelimane","Quelimane - MZUEL"]
["VN","VNUIH","Qui Nhon","Qui Nhon - VNUIH"]
["PG","PGRAB","Rabaul","Rabaul - PGRAB"]
["MM","MMRGN","Rangoon","Rangoon - MMRGN"]
["SA","SARTA","Ras Tanura","Ras Tanura - SARTA"]
["GR","GRRHO","Rhodos","Rhodos - GRRHO"]
["BR","BRRIO","Rio De Janeiro, Rj","Rio De Janeiro, Rj - BRRIO"]
["BR","BRRIG","Rio Grande, Rs","Rio Grande, Rs - BRRIG"]
["CN","CNRZH","Rizhao","Rizhao - CNRZH"]
["CN","CNROQ","Rongqi","Rongqi - CNROQ"]
["JP","JPRMI","Rumoi, Hokkaido","Rumoi, Hokkaido - JPRMI"]
["JP","JPSAE","Saeki, Oita",{"$f":"_xlfn.CONCAT(C450&\" - \"&B450)","v":"Saeki, Oita - JPSAE"}]
["MA","MASFI","Safi","Safi - MASFI"]
["JP","JPSAG","Saganoseki, Oita","Saganoseki, Oita - JPSAG"]
["JP","JPSAK","Sakai, Osaka","Sakai, Osaka - JPSAK"]
["JP","JPSMN","Sakaiminato, Tottori","Sakaiminato, Tottori - JPSMN"]
["JP","JPSBK","Sakaisenboku (Senbok","Sakaisenboku (Senbok - JPSBK"]
["JP","JPSKT","Sakata, Yamagata","Sakata, Yamagata - JPSKT"]
["JP","JPSTO","Sakito, Nagasaki","Sakito, Nagasaki - JPSTO"]
["OM","OMSLL","Salalah","Salalah - OMSLL"]
["BR","BRSSA","Salvador, Ba","Salvador, Ba - BRSSA"]
["CL","CLSAI","San Antonio","San Antonio - CLSAI"]
["US","USSAN","San Diego,  Ca","San Diego,  Ca - USSAN"]
["US","USSFO","San Francisco,  Ca","San Francisco,  Ca - USSFO"]
["GT","GTSNJ","San Jose","San Jose - GTSNJ"]
["NI","NISJS","San Juan Del Sur","San Juan Del Sur - NISJS"]
["CI","CISPY","San Pedro","San Pedro - CISPY"]
["CN","CNSAU","Sanbu","Sanbu - CNSAU"]
["CN","CNSHG","Sanshan / Guangdong","Sanshan / Guangdong - CNSHG"]
["CN","CNSJQ","Sanshui","Sanshui - CNSJQ"]
["GT","GTSTC","Santo Tomas De Casti","Santo Tomas De Casti - GTSTC"]
["BR","BRSSZ","Santos, Sp","Santos, Sp - BRSSZ"]
["US","USSAV","Savannah,  Ga","Savannah,  Ga - USSAV"]
["US","USSEA","Seattle,  Wa","Seattle,  Wa - USSEA"]
["ID","IDSRG","Semarang, Java","Semarang, Java - IDSRG"]
["JP","JPSEN","Sendai, Kagoshima","Sendai, Kagoshima - JPSEN"]
["JP","JPSDJ","Sendai, Miyagi","Sendai, Miyagi - JPSDJ"]
["CN","CNSHA","Shanghai","Shanghai - CNSHA"]
["CN","CNSWA","Shantou","Shantou - CNSWA"]
["AE","AESHJ","Sharjah","Sharjah - AESHJ"]
["CN","CNSHK","Shekou","Shekou - CNSHK"]
["CN","CNSZX","Shenzhen","Shenzhen - CNSZX"]
["JP","JPSBS","Shibushi, Kagoshima","Shibushi, Kagoshima - JPSBS"]
["CN","CNSHD","Shidao","Shidao - CNSHD"]
["JP","JPSKM","Shikama, Hyogo","Shikama, Hyogo - JPSKM"]
["JP","JPSMZ","Shimizu, Shizuoka","Shimizu, Shizuoka - JPSMZ"]
["JP","JPSHS","Shimonoseki, Yamaguc","Shimonoseki, Yamaguc - JPSHS"]
["JP","JPSMT","Shimotsu, Wakayama","Shimotsu, Wakayama - JPSMT"]
["JP","JPSHN","Shingu, Wakayama","Shingu, Wakayama - JPSHN"]
["JP","JPSGM","Shiogama, Miyagi","Shiogama, Miyagi - JPSGM"]
["KW","KWSAA","Shuaiba","Shuaiba - KWSAA"]
["CN","CNSDG","Shui Dong","Shui Dong - CNSDG"]
["CN","CNSUD","Shunde","Shunde - CNSUD"]
["KW","KWSWK","Shuwaikh","Shuwaikh - KWSWK"]
["MY","MYSBW","Sibu, Sarawak","Sibu, Sarawak - MYSBW"]
["SG","SGSIN","Singapore","Singapore - SGSIN"]
["DZ","DZSKI","Skikda","Skikda - DZSKI"]
["OM","OMSOH","Sohar","Sohar - OMSOH"]
["TH","THSGK","Songkhla","Songkhla - THSGK"]
["PH","PHSFS","Subic","Subic - PHSFS"]
["EG","EGSUZ","Suez","Suez - EGSUZ"]
["ID","IDSUB","Surabaya","Surabaya - IDSUB"]
["FJ","FJSUV","Suva","Suva - FJSUV"]
["JP","JPSUZ","Suzaki, Kochi","Suzaki, Kochi - JPSUZ"]
["CN","CNSZH","Suzhou","Suzhou - CNSZH"]
["AU","AUSYD","Sydney, Ns","Sydney, Ns - AUSYD"]
["JP","JPTBN","Tachibana, Tokushima","Tachibana, Tokushima - JPTBN"]
["JP","JPTGO","Tagonoura, Shizuoka","Tagonoura, Shizuoka - JPTGO"]
["CN","CNTAC","Taicang Pt","Taicang Pt - CNTAC"]
["TW","TWTXG","Taichung","Taichung - TWTXG"]
["TW","TWTPE","Taipei","Taipei - TWTPE"]
["CN","CNTAP","Taiping","Taiping - CNTAP"]
["CN","CNTZO","Taizhou","Taizhou - CNTZO"]
["JP","JPTAK","Takamatsu, Kagawa","Takamatsu, Kagawa - JPTAK"]
["JP","JPTHR","Takehara, Hiroshima","Takehara, Hiroshima - JPTHR"]
["GH","GHTKD","Takoradi",{"$f":"_xlfn.CONCAT(C514&\" - \"&B514)","v":"Takoradi - GHTKD"}]
["JP","JPTKM","Takuma, Kagawa","Takuma, Kagawa - JPTKM"]
["MG","MGTMM","Tamatave (Toamasina)","Tamatave (Toamasina) - MGTMM"]
["US","USTPA","Tampa,  Fl","Tampa,  Fl - USTPA"]
["MX","MXTAM","Tampico, Tam","Tampico, Tam - MXTAM"]
["JP","JPTAE","Tanabe, Wakayama","Tanabe, Wakayama - JPTAE"]
["TZ","TZTGT","Tanga","Tanga - TZTGT"]
["MA","MATNG","Tangier","Tangier - MATNG"]
["MY","MYTPP","Tanjong Pelepas","Tanjong Pelepas - MYTPP"]
["ID","IDTNJ","Tanjung Pinang, Riau","Tanjung Pinang, Riau - IDTNJ"]
["ID","IDTPP","Tanjung Priok","Tanjung Priok - IDTPP"]
["TW","TWTYN","Taoyuan","Taoyuan - TWTYN"]
["NZ","NZTRG","Tauranga","Tauranga - NZTRG"]
["IL","ILTLV","Tel Aviv","Tel Aviv - ILTLV"]
["GH","GHTEM","Tema","Tema - GHTEM"]
["GR","GRSKG","Thessaloniki","Thessaloniki - GRSKG"]
["AU","AUTHE","Thevenard, Sa","Thevenard, Sa - AUTHE"]
["CN","CNTSN","Tianjin","Tianjin - CNTSN"]
["CN","CNTXG","Tianjinxingang","Tianjinxingang - CNTXG"]
["NG","NGTIN","Tincan/Lagos","Tincan/Lagos - NGTIN"]
["MG","MGTOA","Toamasina","Toamasina - MGTOA"]
["JP","JPTBT","Tobata, Fukuoka","Tobata, Fukuoka - JPTBT"]
["JP","JPTOK","Tokachi, Hokkaido","Tokachi, Hokkaido - JPTOK"]
["JP","JPTKS","Tokushima, Tokushima","Tokushima, Tokushima - JPTKS"]
["JP","JPTKY","Tokuyama, Yamaguchi","Tokuyama, Yamaguchi - JPTKY"]
["JP","JPTYO","Tokyo","Tokyo - JPTYO"]
["JP","JPTMK","Tomakomai, Hokkaido","Tomakomai, Hokkaido - JPTMK"]
["JP","JPTOM","Tomioka, Tokushima","Tomioka, Tokushima - JPTOM"]
["JP","JPTND","Tonda, Yamaguchi","Tonda, Yamaguchi - JPTND"]
["AU","AUTSV","Townsville, Ql","Townsville, Ql - AUTSV"]
["JP","JPTOY","Toyama, Toyama","Toyama, Toyama - JPTOY"]
["JP","JPTHS","Toyohashi, Aichi","Toyohashi, Aichi - JPTHS"]
["LB","LBKYE","Tripoli","Tripoli - LBKYE"]
["LY","LYTIP","Tripoli","Tripoli - LYTIP"]
["JP","JPTMI","Tsukumi, Oita","Tsukumi, Oita - JPTMI"]
["JP","JPTRG","Tsuruga, Fukui","Tsuruga, Fukui - JPTRG"]
["MG","MGTLE","Tulear (Toliara)","Tulear (Toliara) - MGTLE"]
["IN","INTUT","Tuticorin(New Tutico","Tuticorin(New Tutico - INTUT"]
["MX","MXTUX","Tuxpan, Jer","Tuxpan, Jer - MXTUX"]
["JP","JPUBJ","Ube, Yamaguchi","Ube, Yamaguchi - JPUBJ"]
["JP","JPUCU","Uchinoura, Fukui","Uchinoura, Fukui - JPUCU"]
["JP","JPUCR","Uchiura, Ishikawa","Uchiura, Ishikawa - JPUCR"]
["IQ","IQUQR","Umm Qasr","Umm Qasr - IQUQR"]
["QA","QAUMS","Ummsaid","Ummsaid - QAUMS"]
["JP","JPUNO","Uno, Okayama","Uno, Okayama - JPUNO"]
["AR","ARUSH","Ushuaia","Ushuaia - ARUSH"]
["JP","JPUWA","Uwajima, Ehime","Uwajima, Ehime - JPUWA"]
["CL","CLVAP","Valparaiso","Valparaiso - CLVAP"]
["CA","CAVAN","Vancouver, Bc","Vancouver, Bc - CAVAN"]
["MX","MXVER","Veracruz","Veracruz - MXVER"]
["LA","LAVTE","Viangchung  Vientian","Viangchung  Vientian - LAVTE"]
["IN","INVTZ","Visakhapatnam","Visakhapatnam - INVTZ"]
["VN","VNVUT","Vung Tau","Vung Tau - VNVUT"]
["JP","JPWAK","Wakayama, Wakayama","Wakayama, Wakayama - JPWAK"]
["AU","AUWAL","Wallaroo, Sa","Wallaroo, Sa - AUWAL"]
["NA","NAWVB","Walvis Bay","Walvis Bay - NAWVB"]
["CN","CNWEI","Weihai","Weihai - CNWEI"]
["NZ","NZWLG","Wellington","Wellington - NZWLG"]
["CN","CNWNZ","Wenzhou","Wenzhou - CNWNZ"]
["CN","CNWUH","Wuhan","Wuhan - CNWUH"]
["CN","CNWHI","Wuhu","Wuhu - CNWHI"]
["CN","CNWUX","Wuxi","Wuxi - CNWUX"]
["CN","CNWUZ","Wuzhou","Wuzhou - CNWUZ"]
["CN","CNXMN","Xiamen (Xian)","Xiamen (Xian) - CNXMN"]
["CN","CNXAO","Xiaolan",{"$f":"_xlfn.CONCAT(C578&\" - \"&B578)","v":"Xiaolan - CNXAO"}]
["CN","CNXIL","Xiaolan","Xiaolan - CNXIL"]
["CN","CNXAB","Xinfeng","Xinfeng - CNXAB"]
["CN","CNXIN","Xinhui","Xinhui - CNXIN"]
["CN","CNXIU","Xiuyu","Xiuyu - CNXIU"]
["JP","JPYAN","Yanai, Yamaguchi","Yanai, Yamaguchi - JPYAN"]
["SA","SAYNB","Yanbu","Yanbu - SAYNB"]
["CN","CNYPG","Yangpu","Yangpu - CNYPG"]
["CN","CNYZH","Yangzhou","Yangzhou - CNYZH"]
["CN","CNYAN","Yantai","Yantai - CNYAN"]
["CN","CNYNT","Yantai","Yantai - CNYNT"]
["CN","CNYTN","Yantian","Yantian - CNYTN"]
["JP","JPYAT","Yatsushiro, Kumamoto","Yatsushiro, Kumamoto - JPYAT"]
["JP","JPYWH","Yawatahama, Ehime","Yawatahama, Ehime - JPYWH"]
["CN","CNYIC","Yichang","Yichang - CNYIC"]
["TR","TRYPO","Yilport","Yilport - TRYPO"]
["CN","CNYIK","Yingkou","Yingkou - CNYIK"]
["JP","JPYKK","Yokkaichi, Mie","Yokkaichi, Mie - JPYKK"]
["JP","JPYOK","Yokohama, Kanagawa","Yokohama, Kanagawa - JPYOK"]
["JP","JPYOS","Yokosuka, Kanagawa","Yokosuka, Kanagawa - JPYOS"]
["JP","JPYUR","Yura, Wakayama","Yura, Wakayama - JPYUR"]
["CN","CNZJG","Zhangjiagang","Zhangjiagang - CNZJG"]
["CN","CNZHA","Zhanjiang","Zhanjiang - CNZHA"]
["CN","CNZQG","Zhaoqing","Zhaoqing - CNZQG"]
["CN","CNZAP","Zhapu","Zhapu - CNZAP"]
["CN","CNZHE","Zhen Jiang","Zhen Jiang - CNZHE"]
["CN","CNCGO","Zhengzhou","Zhengzhou - CNCGO"]
["CN","CNZSN","Zhongshan","Zhongshan - CNZSN"]
["CN","CNZUH","Zhuhai","Zhuhai - CNZUH"]